Cogmind - Beta 9.4 @@@ ROGUE MODE // 2020.03.15 @ 00:58:35 Player: Finestep Result: Self-destructed Performance ------------- Evolutions (8) 4000 Regions Visited (29) 5800 Robots Destroyed (367) 1835 Value Destroyed (11539) 11539 Prototype IDs (113) 2260 Alien Tech Used (8) 1600 Bonus (14884) 14884 TOTAL SCORE: 41918 Bonus ------- Triggered High Security 500 High Alert Combat Kills 2479 Follower Combat Kills 3713 Network Hubs Disabled 200 Met Zhirov 300 Met Warlord at Base 500 MAIN.C Attacked Warlord 500 Built Enhanced Grunts 300 Hacked Protovariant 500 Met Warlord at Research 2000 Scanned by Researcher 500 Pursued by Intercept 500 Acquired SGEMP 2000 Met Sigix 2000 Friendly Fire -1108 Cogmind --------- Core Integrity 1219/1450 Matter 140/300 Energy 92/100 System Corruption 5% Temperature Cool (0) Movement Core (1100) Ox21 Location -2/Section 7 Parts ------- > --- POWER (2) -------- (None) > --- PROPULSION (6) --- Impulse Thruster Array Impulse Thruster Array > --- UTILITY (13) ----- Large Storage Unit Large Storage Unit Experimental Signal Interpreter Long-range Terrain Scanner Experimental Terrain Scan Processor Experimental Melee Analysis Suite Advanced Transmission Jammer Advanced Powered Armor Advanced Hacking Suite Advanced Hacking Suite Advanced System Shield > --- WEAPON (2) ------- Enhanced Force Lance Enhanced Force Lance > --- INVENTORY (16) --- Experimental Q-thruster Experimental Q-thruster Experimental Sensor Array Experimental Core Analyzer Nanoactuators Advanced Reaction Control System Experimental Phase Shifter Experimental Propulsion Shielding Medium Regenerative Plating Core Regenerator Subatomic Replicator Mini Smartbomb Launcher Sigix Broadsword SGEMP Prototype Peak State ------------ > --- POWER ------------ Mini Fusion Reactor Mini Fusion Reactor > --- PROPULSION ------- Impulse Thruster Array Impulse Thruster Array Impulse Thruster Array > --- UTILITY ---------- Large Storage Unit Large Storage Unit Experimental Energy Well Experimental Signal Interpreter Experimental Terrain Scan Processor Experimental Melee Analysis Suite Experimental Phase Shifter Experimental Propulsion Shielding Advanced Powered Armor Advanced Hacking Suite Advanced Hacking Suite Advanced Hacking Suite Advanced System Shield > --- WEAPON ----------- Sigix Broadsword > --- INVENTORY -------- Compact Particle Reactor Experimental Q-thruster Experimental Q-thruster Experimental Q-thruster Experimental Sensor Array Long-range Terrain Scanner Advanced Transmission Jammer Advanced Reaction Control System Medium Regenerative Plating High-powered Transdimensional Reconstructor Subatomic Replicator Mini Smartbomb Launcher Core Stripper Enhanced Force Lance Enhanced Force Lance [Rating: 186] Favorites ----------- Power Micro Fission Core Engine Light Ion Engine Power Core Micro Fission Core Reactor Mini Fusion Reactor Propulsion Nuclear Pulse Array Treads Light Treads Leg Enhanced Flexi-carbon Leg Wheel Armored Huge Wheel Flight Unit Nuclear Pulse Array Utility Large Storage Unit Device Experimental Sensor Array Storage Large Storage Unit Processor Experimental Signal Interpreter Hackware Advanced Hacking Suite Protection Experimental Propulsion Shielding Weapon Enhanced Force Lance Energy Gun Improved Medium Laser Energy Cannon Improved EM Pulse Cannon Ballistic Gun Light Assault Rifle Ballistic Cannon Assault Cannon Launcher Mini Smartbomb Launcher Special Weapon Mining Laser Impact Weapon Core Stripper Slashing Weapon Plasma Sword Piercing Weapon Enhanced Force Lance Build | -11 -10 -10 -9 -9 -9 -7 -6 -6 -6 -6 -6 -5 -5 -5 -5 -5 -4 -4 -4 -4 -4 -4 -4 -3 -3 -3 -2 -2 -2 ------- Run | Scr Mat Min Mat Sto Rec Fac Fac Ext Cet Arc Hub Fac Was Fac Upp War Pro Fac Was Fac Upp Upp Zhi Pro Res Qua Res Tes Sec Slots Evolved 16 | . . . 2 . . 4 2 . . . . 2 . . . . . 2 . . . . . . 2 . 2 . . Power 1 | . . . . . . . . . . . . 1 . . . . . . . . . . . . . . . . . Propulsion 4 | . . . 1 . . 1 . . . . . 1 . . . . . . . . . . . . . . 1 . . Utility 11 | . . . 1 . . 3 2 . . . . . . . . . . 2 . . . . . . 2 . 1 . . Weapon . | . . . . . . . . . . . . . . . . . . . . . . . . . . . . . . Parts Attached 407 | 8 21 6 41 16 1 10 24 22 6 9 31 45 8 23 4 6 2 11 . 11 2 1 5 3 10 13 10 34 24 Power 32 | 1 . 2 3 1 . 1 1 3 1 . 2 6 2 1 1 . . 1 . 2 . . . . . 1 . 3 . Engine 8 | 1 . 2 3 . . . . 2 . . . . . . . . . . . . . . . . . . . . . Core 9 | . . . . . . . 1 . . . . 2 1 1 1 . . . . 2 . . . . . 1 . . . Reactor 15 | . . . . 1 . 1 . 1 1 . 2 4 1 . . . . 1 . . . . . . . . . 3 . Propulsion 68 | 2 4 1 10 5 1 2 8 3 1 . 7 5 . . . . . 1 . 3 . . . . 3 2 6 4 . Treads 25 | 1 1 1 9 5 . 1 2 3 1 . . . . . . . . . . . . . . . . . 1 . . Leg 11 | . . . . . . . 2 . . . 7 1 . . . . . . . . . . . . . . 1 . . Wheel 9 | 1 3 . 1 . 1 1 2 . . . . . . . . . . . . . . . . . . . . . . Hover . | . . . . . . . . . . . . . . . . . . . . . . . . . . . . . . Flight 23 | . . . . . . . 2 . . . . 4 . . . . . 1 . 3 . . . . 3 2 4 4 . Utility 177 | 2 4 . 11 2 . 5 8 8 1 5 10 23 6 15 2 6 2 7 . 4 2 1 5 . 4 5 4 18 17 Device 74 | . . . . . . 2 1 1 . 1 4 9 3 6 2 5 2 5 . 2 2 1 1 . 2 3 1 8 13 Storage 17 | 2 4 . 3 . . 1 . 1 . . 1 1 . 1 . . . . . . . . 1 . . 1 . 1 . Processor 6 | . . . . 1 . . . . . . . 2 . . . . . 1 . 1 . . . . 1 . . . . Hackware 19 | . . . . . . . 2 1 . 2 1 9 1 2 . . . . . . . . . . . . 1 . . Protection 61 | . . . 8 1 . 2 5 5 1 2 4 2 2 6 . 1 . 1 . 1 . . 3 . 1 1 2 9 4 Artifact . | . . . . . . . . . . . . . . . . . . . . . . . . . . . . . . Weapon 130 | 3 13 3 17 8 . 2 7 8 3 4 12 11 . 7 1 . . 2 . 2 . . . 3 3 5 . 9 7 Energy Gun 7 | 1 1 . 3 . . . . . . . . . . . . . . . . . . . . . . . . 2 . Energy Cannon 26 | . . . 2 1 . 1 5 4 1 1 5 2 . . . . . . . . . . . . . 1 . 1 2 Ballistic Gun 33 | 2 6 3 9 1 . . . 4 1 2 2 2 . 1 . . . . . . . . . . . . . . . Ballistic Cannon 13 | . 1 . 2 3 . . 1 . . . 3 3 . . . . . . . . . . . . . . . . . Launcher 16 | . . . . . . 1 1 . . . 1 1 . 2 1 . . 2 . . . . . 2 1 2 . 1 1 Special Weapon 7 | . 5 . 1 . . . . . . . 1 . . . . . . . . . . . . . . . . . . Impact Weapon 1 | . . . . . . . . . . . . . . . . . . . . . . . . . . . . 1 . Slashing Weapon 16 | . . . . 3 . . . . 1 1 . 3 . . . . . . . 1 . . . . 1 2 . 4 . Piercing Weapon 11 | . . . . . . . . . . . . . . 4 . . . . . 1 . . . 1 1 . . . 4 Special Melee Weapon . | . . . . . . . . . . . . . . . . . . . . . . . . . . . . . . Unidentified Prototypes 31 | . . . 5 1 . . 3 . 3 . 3 2 1 . . 3 . . . . . . 3 . . 2 . 4 1 Parts Lost 38 | . 4 3 6 2 . . 9 1 . . 6 . . . 2 . 1 . . . . . . . . . . . 4 Power 7 | . . . 1 . . . 1 1 . . . . . . 1 . 1 . . . . . . . . . . . 2 Propulsion 13 | . 3 1 2 1 . . 4 . . . 1 . . . . . . . . . . . . . . . . . 1 Utility 9 | . . . . 1 . . 2 . . . 4 . . . 1 . . . . . . . . . . . . . 1 Weapon 9 | . 1 2 3 . . . 2 . . . 1 . . . . . . . . . . . . . . . . . . Highest Loss Streak 4 | . 2 3 1 1 . . 2 1 . . 4 . . . 2 . 1 . . . . . . . . . . . 4 Average Slot Usage (%) 89 | . 99 99 96 96 100 85 87 92 87 86 90 94 87 87 87 87 87 83 84 87 89 89 89 89 84 84 81 81 85 Engine 2 | . 14 14 9 5 . . . 3 . . . . . . . . . . . . . . . . . . . . . Core 4 | . . . . . . . 3 . . . . 2 5 10 11 11 10 5 5 7 10 10 10 10 9 8 8 . . Reactor 2 | . . . . 5 11 7 1 1 6 6 5 8 5 . . . . 4 5 2 . . . . . . . 7 7 Treads 5 | . 14 14 28 30 22 15 6 6 7 6 2 . . . . . . . . . . . . . . . . . . Leg 2 | . . . . . . . . 6 . . 15 15 . . . . . . . . . . . . . . . . . Wheel 2 | . 13 14 3 . 10 6 8 6 6 6 . . . . . . . . . . . . . . . . . . . Flight 8 | . . . . . . . . . . . . 7 17 17 17 17 17 15 15 14 15 15 15 15 14 14 12 12 12 Device 7 | . . . . . . . 5 3 . 2 11 6 7 6 9 12 11 20 15 15 15 15 15 15 14 13 9 10 11 Storage 13 | . 28 28 22 22 22 22 20 25 26 26 26 11 5 5 5 5 5 5 5 5 5 5 5 5 4 5 8 8 8 Processor 5 | . . . . . 11 7 5 . . . . 4 5 5 5 5 5 5 10 10 10 10 10 10 13 14 13 13 13 Hackware 12 | . . . . . . . 10 13 20 12 1 18 23 23 17 17 17 15 15 15 15 15 15 15 14 14 16 17 16 Protection 5 | . . . 10 9 . 6 8 9 6 11 10 2 2 3 5 3 5 5 5 5 5 5 4 5 8 7 7 5 4 Energy Cannon 1 | . . . 1 4 11 6 8 8 11 4 4 . . . . . . . . . . . . . . . . . 1 Ballistic Gun 5 | . 27 27 14 4 11 7 2 4 . 7 5 3 5 3 . . . . . . . . . . . . . . . Ballistic Cannon 1 | . . . 4 12 . . 1 . . . 2 3 . . . . . . . . . . . . . . . . . Slashing Weapon 1 | . . . . . . . . . 1 1 . 2 5 1 . . . . . 3 5 5 5 5 4 4 4 3 . Piercing Weapon 1 | . . . . . . . . . . . . . . 4 5 5 5 5 5 5 5 5 5 3 . . . . 5 Naked Turns . | . . . . . . . . . . . . . . . . . . . . . . . . . . . . . . Heaviest Build 112 | 14 38 37 53 59 51 77 78 90 94 103 103 112 46 46 43 40 40 50 45 57 44 44 42 42 49 57 72 80 81 Greatest Support 119 | 16 20 10 63 63 63 28 56 28 28 28 104 119 48 48 48 48 48 48 48 49 49 49 49 49 52 62 81 81 81 Greatest Overweight (x) 26 | . 3 3 5 1 4 6 2 3 3 3 3 1 . . . . . 1 . 1 . . . . . 1 1 1 26 Average Overweight (x) . | . 2 3 1 . 3 2 1 2 2 3 1 . . . . . . . . . . . . . . . . . . Largest Inventory Capacity 22 | 8 16 16 16 16 16 22 22 22 22 22 22 22 10 10 10 10 10 10 10 10 10 10 10 10 10 16 16 16 16 Average Capacity 14 | 6 15 16 16 16 16 21 22 22 22 22 22 16 10 10 10 10 10 10 10 10 10 10 10 10 10 11 16 16 16 Most Carried 22 | 6 16 16 16 16 16 22 22 22 22 22 22 22 10 10 10 10 10 10 10 10 10 10 10 10 10 16 16 16 16 Average Carried 14 | 3 13 15 15 15 15 17 21 21 21 21 21 16 9 9 9 9 10 9 10 9 10 9 9 10 9 10 15 15 15 Final Capacity 22 | 8 16 16 16 16 16 22 22 22 22 22 22 10 10 10 10 10 10 10 10 10 10 10 10 10 10 16 16 16 16 Final Carried 22 | 6 16 16 16 16 16 22 21 22 21 22 22 10 10 10 10 10 10 10 10 10 10 10 10 10 10 16 16 16 16 Class Distribution -------------------- 18% | Hacker-Ninja 17% | Scavenger-Mutant 17% | Mutant 15% | Hacker-Sprinter 10% | Hacker-Scout 5% | Commander-Mutant 3% | Machinist-Ninja 3% | Machinist-Scout 3% | Hacker-Gladiator Dominant Class ---------------- Mutant | -10/Materials Scavenger-Mutant | -10/Mines Mutant | -9/Materials Mutant | -9/Storage Commander-Mutant | -9/Recycling Commander-Mutant | -7/Factory Hauler-Mutant | -6/Factory Scavenger-Mutant | -6/Extension Hacker-Mutant | -6/Cetus Commander-Mutant | -6/Archives Scavenger-Mutant | -6/Hub_04(d) Scavenger-Mutant | -5/Factory Hacker-Sprinter | -5/Waste Hacker-Sprinter | -5/Factory Hacker-Sprinter | -5/Upper Caves Hacker-Sprinter | -5/Warlord Hacker-Scout | -4/Proximity Caves Hacker-Ninja | -4/Factory Hacker-Ninja | -4/Waste Machinist-Ninja | -4/Factory Machinist-Scout | -4/Upper Caves Machinist-Scout | -4/Upper Caves Machinist-Ninja | -4/Zhirov Machinist-Ninja | -3/Proximity Caves Hacker-Ninja | -3/Research Hacker-Ninja | -3/Quarantine Hacker-Scout | -2/Research Hacker-Ninja | -2/Testing Hacker-Ninja | -2/Section 7 Resources | -11 -10 -10 -9 -9 -9 -7 -6 -6 -6 -6 -6 -5 -5 -5 -5 -5 -4 -4 -4 -4 -4 -4 -4 -3 -3 -3 -2 -2 -2 ----------- Run | Scr Mat Min Mat Sto Rec Fac Fac Ext Cet Arc Hub Fac Was Fac Upp War Pro Fac Was Fac Upp Upp Zhi Pro Res Qua Res Tes Sec Matter Collected 8649 | 332 600 178 1325 484 247 190 373 645 60 250 915 532 90 368 46 18 126 345 . 135 70 70 60 170 120 190 100 370 240 Remotely . | . . . . . . . . . . . . . . . . . . . . . . . . . . . . . . Salvage Created 16136 | 129 754 225 2096 586 324 320 1412 1523 203 371 1920 813 . 978 149 . 102 492 . 351 . 40 293 300 361 369 589 1023 413 Parts 739 | 5 49 14 119 43 15 32 60 58 7 22 77 35 . 40 9 . 4 19 . 21 . . 5 12 27 9 17 25 15 Haulers Intercepted 26 | . 2 . 5 2 . . 2 1 . . 2 1 . 3 . . . 1 . 2 . . . . . 1 2 2 . Recyclers Shooed 16 | . 2 1 2 2 1 . 2 3 . . . 1 . 1 . . . . . . . . . . . . . . 1 Parts Field Recycled . | . . . . . . . . . . . . . . . . . . . . . . . . . . . . . . Retrieved Matter . | . . . . . . . . . . . . . . . . . . . . . . . . . . . . . . Parts Self-Destructed 40 | . . . . . . . . . . . . . . . 5 21 2 . . . . . 5 7 . . . . . Prevented 5 | . . . . . . . . . . . . . . . . 5 . . . . . . . . . . . . . Kills | -11 -10 -10 -9 -9 -9 -7 -6 -6 -6 -6 -6 -5 -5 -5 -5 -5 -4 -4 -4 -4 -4 -4 -4 -3 -3 -3 -2 -2 -2 ------- Run | Scr Mat Min Mat Sto Rec Fac Fac Ext Cet Arc Hub Fac Was Fac Upp War Pro Fac Was Fac Upp Upp Zhi Pro Res Qua Res Tes Sec Combat Hostiles Destroyed 212 | . 17 8 46 16 3 8 20 14 3 1 16 8 . 9 7 . 5 4 . . . . . 10 8 3 2 1 3 Melee 18 | . . . . . . . . . . . . 1 . 2 . . . . . . . . . 3 6 1 2 1 2 Guns 78 | . 17 8 27 4 3 3 2 6 . . 6 2 . . . . . . . . . . . . . . . . . Cannons 73 | . . . 18 12 . 4 13 8 2 1 10 5 . . . . . . . . . . . . . . . . . AOE 40 | . . . 1 . . 1 3 . . . . . . 7 7 . 5 4 . . . . . 7 2 2 . . 1 Classes Destroyed 20 | 2 5 . 5 . 1 1 2 . . . 2 . . . . . . . . . . 1 . . . . . . 1 Worker 20 | . . . 1 1 . . 3 1 . . 9 1 . 2 . . . . . 2 . . . . . . . . . Builder 15 | . . . 3 3 . 1 4 . . . 3 . . 1 . . . . . . . . . . . . . . . Tunneler 6 | 2 . . . . . 1 . . . . 1 . . 1 . . . 1 . . . . . . . . . . . Hauler 26 | . 2 . 5 2 . . 2 1 . . 2 1 . 3 . . . 1 . 2 . . . . . 1 2 2 . Recycler 27 | 1 . 1 2 . 4 . . 3 . . 3 2 . 2 . . . 1 . . . . . . . . 2 5 1 Minesweeper 1 | . . . . . . . . . . . . . . . . . . . . . . 1 . . . . . . . Mechanic 2 | . . . . . . . . . . . 1 . . . . . . 1 . . . . . . . . . . . Operator 18 | . 2 . 3 . . 2 . . . 8 1 . . . . . . . . 2 . . . . . . . . . Drone 3 | . . . . . 3 . . . . . . . . . . . . . . . . . . . . . . . . Watcher 34 | . 3 . 5 1 . . 1 . . . 1 2 . 6 . . 1 3 . 1 . . . . 2 3 1 3 1 Swarmer 70 | . 6 8 13 3 . 3 . 5 . . 1 . . 8 4 . 4 4 . . . . . 4 6 . 1 . . Grunt 87 | . 11 . 23 8 . 4 12 6 2 . 7 2 . . 3 . . . . . . . . 6 . 3 . . . Brawler 6 | . . . 1 . . . 1 . . . 3 1 . . . . . . . . . . . . . . . . . Duelist 4 | . . . 2 . . . . . . . 1 . . . . . 1 . . . . . . . . . . . . Protector 1 | . . . . . . . 1 . . . . . . . . . . . . . . . . . . . . . . Researcher 1 | . . . . . . . . . . . . . . . . . . . . . . . . . . . . . 1 Sentry 21 | . . . 7 5 . . 2 2 . 1 2 1 . . . . . . . . . . . . . . . . 1 Demolisher 1 | . . . . . . . . . . . 1 . . . . . . . . . . . . . . . . . . Hunter 6 | . . . . . . . 4 . . . . 2 . . . . . . . . . . . . . . . . . Programmer 11 | . . . . . . 1 . 1 . . 1 2 . 1 . . . . . . . . . . 2 . 1 1 1 Cetus Guard 1 | . . . . . . . . . 1 . . . . . . . . . . . . . . . . . . . . Enhanced Grunt 1 | . . . . . . . . . . . 1 . . . . . . . . . . . . . . . . . . Tracker 1 | . . . . . . . . . . . . . . . . . . . . . . . . . . . . . 1 Savage 1 | . . . . . . . . 1 . . . . . . . . . . . . . . . . . . . . . Butcher 2 | . . . . . . . . 1 . . 1 . . . . . . . . . . . . . . . . . . Guerrilla 1 | . . . . . . . . 1 . . . . . . . . . . . . . . . . . . . . . Best Kill Streak 11 | 2 3 4 8 5 3 5 11 5 2 5 9 3 . 11 7 . 4 5 . 2 . 1 . 4 3 2 3 3 2 Combat Bots Only 8 | . 3 3 8 3 1 4 7 3 2 1 4 2 . 8 7 . 4 4 . . . . . 4 3 2 1 1 1 Max Kills in Single Turn 5 | 1 2 1 2 1 1 1 4 1 1 1 2 1 . 4 4 . 3 5 . 1 . 1 . 2 2 1 1 1 1 Gunslinging 1 | . 1 . . . . . . . . . . . . . . . . . . . . . . . . . . . . Exploded 4 | . . . 1 . . 1 3 . . . . . . 3 4 . 3 4 . . . . . 2 2 1 . . 1 Melee 1 | . . . . . . . . . . . . 1 . 1 . . . . . . . . . 1 1 1 1 1 1 Uniques/NPCs Destroyed . | . . . . . . . . . . . . . . . . . . . . . . . . . . . . . . Combat | -11 -10 -10 -9 -9 -9 -7 -6 -6 -6 -6 -6 -5 -5 -5 -5 -5 -4 -4 -4 -4 -4 -4 -4 -3 -3 -3 -2 -2 -2 -------- Run | Scr Mat Min Mat Sto Rec Fac Fac Ext Cet Arc Hub Fac Was Fac Upp War Pro Fac Was Fac Upp Upp Zhi Pro Res Qua Res Tes Sec Damage Taken 13295 | . 885 238 2177 760 . 477 1937 624 300 121 2204 597 . 523 247 . 106 . . 60 . . . 122 442 . 116 182 1177 Core 1710 | . 91 25 269 102 . 60 215 63 22 . 229 172 . 106 93 . 45 . . 16 . . . 23 43 . . . 136 Absorbed by Shields 371 | . . . . . . 54 . 273 44 . . . . . . . . . . . . . . . . . . . . Core Remaining (%) 67 | 100 . 53 . . 7 91 . . . . 37 . . . . . 58 . . . . . . 96 . 96 . . . Volleys Fired 823 | 14 108 22 181 63 26 25 83 70 8 23 100 34 . 20 7 . 6 3 . . . . . 7 1 3 . 1 18 Largest 2 | 2 2 2 2 2 2 2 2 2 2 2 2 2 . 1 1 . 1 1 . . . . . 1 1 1 . 1 1 Hottest 159 | 40 100 40 100 91 91 91 138 138 138 138 159 148 . 80 80 . 80 80 . . . . . 80 80 80 . 80 120 Shots Fired 1509 | 28 204 44 358 114 52 47 152 140 16 44 189 55 . 20 7 . 6 3 . . . . . 7 1 3 . 1 18 Gun 847 | 28 189 44 260 11 26 22 30 82 . 40 82 16 . 17 . . . . . . . . . . . . . . . Cannon 602 | . 2 . 97 103 26 22 121 58 16 4 103 39 . . . . . . . . . . . . . . . . 11 Launcher 43 | . . . . . . 3 1 . . . 1 . . 3 7 . 6 3 . . . . . 7 1 3 . 1 7 Special 17 | . 13 . 1 . . . . . . . 3 . . . . . . . . . . . . . . . . . . Kinetic 1080 | 28 189 44 319 103 26 22 37 82 . 40 120 53 . 17 . . . . . . . . . . . . . . . Thermal 261 | . 13 . 39 11 26 22 106 . . . 31 2 . . . . . . . . . . . . . . . . 11 Explosive 43 | . . . . . . 3 1 . . . 1 . . 3 7 . 6 3 . . . . . 7 1 3 . 1 7 Electromagnetic 122 | . 2 . . . . . 8 58 16 4 34 . . . . . . . . . . . . . . . . . . Robot Hit Streak 29 | 6 10 7 15 23 9 11 29 14 8 7 12 5 . 3 . . . . . . . . . 4 . . . . 11 Robot Miss Streak 8 | 2 4 4 2 3 8 5 3 6 1 5 3 8 . 4 . . . . . . . . . . . . . . . Penetration Max 2 | . . . . . . . 1 2 . . 1 1 . 1 . . . . . . . . . . . . . . . Secondary Targets 8 | . 2 2 4 . . . . . . . . . . . . . . . . . . . . . . . . . . Max Gunslinging Chain 1 | . 1 1 1 . . . . . . . . . . . . . . . . . . . . . . . . . . Shots Hit Robots 1138 | 18 112 28 251 71 21 32 117 91 12 33 118 36 . 45 . . 2 16 . 11 . 5 10 5 30 12 19 28 15 Core Hits 585 | 7 51 12 96 24 8 16 60 49 8 17 61 21 . 28 15 . 12 13 . 8 . 2 4 20 11 11 7 11 13 Critical Hits 115 | . 1 . 8 2 . 1 6 30 . 3 21 15 . 5 . . 1 1 . 2 . . . . 3 1 8 7 . Critical Kills 44 | . 1 . 3 . . . 4 12 . 1 6 8 . 2 . . 1 . . . . . . . . 1 4 1 . Critical Parts Destroyed 69 | . . . 5 2 . 1 2 16 . 2 15 7 . 3 . . . 1 . 2 . . . . 3 . 4 6 . Melee Attacks 844 | . . . . 6 . . . . 4 8 . 71 . 171 3 11 25 49 2 78 14 18 10 27 67 66 61 96 57 Kinetic 3 | . . . . . . . . . . . . . . . . . . . . . . . . . . . . 3 . Impact . | . . . . . . . . . . . . . . . . . . . . . . . . . . . . . . Slashing 504 | . . . . 6 . . . . 4 8 . 71 . 42 . . . . . 35 9 14 3 19 67 66 61 93 6 Piercing 337 | . . . . . . . . . . . . . . 129 3 11 25 49 2 43 5 4 7 8 . . . . 51 Sneak Attacks 47 | . . . . . . . . . . 4 . 5 . 8 . . 1 3 . 4 . 1 . . 4 2 5 8 2 Combat Hostiles 5 | . . . . . . . . . . . . 1 . . . . . . . . . . . . 3 . 1 . . Follow-up Attacks 4 | . . . . . . . . . . . . . . 1 . . . . . . . 1 1 . . . . . 1 Damage Inflicted 46251 | 153 1012 226 4261 1759 365 677 3524 1687 657 1422 4938 1992 . 3691 1218 . 1417 1520 . 887 . 309 1365 1823 2100 1205 2633 3642 1768 Guns 7678 | 153 1012 226 2231 130 198 250 391 477 . 574 1717 116 . 203 . . . . . . . . . . . . . . . Cannons 11315 | . . . 1774 1624 167 328 2536 1210 353 75 2671 577 . . . . . . . . . . . . . . . . . Explosions 8769 | . . . 255 . . 99 597 . 304 . 550 162 . 868 1218 . 1214 377 . . . . . 1586 240 339 . . 960 Melee 18483 | . . . . . . . . . . 773 . 1137 . 2620 . . 203 1143 . 887 . 309 1365 237 1860 866 2633 3642 808 Ramming 6 | . . . 1 5 . . . . . . . . . . . . . . . . . . . . . . . . . Kinetic 11876 | 153 989 226 3446 1645 198 250 531 477 . 574 2491 693 . 203 . . . . . . . . . . . . . . . Thermal 5250 | . . . 786 109 167 328 2214 . 304 . 1180 162 . . . . . . . . . . . . . . . . . Explosive 7601 | . . . . . . 99 597 . . . 103 . . 868 1218 . 1214 377 . . . . . 1586 240 339 . . 960 Electromagnetic 3035 | . 23 . 28 . . . 182 1210 353 75 1164 . . . . . . . . . . . . . . . . . . Impact . | . . . . . . . . . . . . . . . . . . . . . . . . . . . . . . Slashing 12534 | . . . . . . . . . . 773 . 1137 . 466 . . . . . 113 . 265 466 109 1860 866 2633 3642 204 Piercing 5949 | . . . . . . . . . . . . . . 2154 . . 203 1143 . 774 . 44 899 128 . . . . 604 Highest Corruption 12 | . 5 5 . . . 1 . . . . 8 1 1 1 1 1 . 5 12 12 12 7 . . 2 2 . . 5 Average Corruption 3 | . 5 5 . . . 1 . . . . 5 1 1 1 1 1 . 5 9 12 9 3 . . 1 2 . . 1 Corruption Purged 12 | . . . . . . . . . . . . . . . . . . . . . 5 7 . . . . . . . Effects 230 | . 44 16 . . . . . . . . 27 12 1 11 . . . 1 2 65 20 17 . . 1 11 . . 2 Message Errors 56 | . 10 6 . . . . . . . . 4 3 1 7 . . . . . 7 6 6 . . 1 4 . . 1 Matter Fused 34 | . 6 4 . . . . . . . . 6 . . . . . . . . 7 3 8 . . . . . . . Heat Flow Errors 17 | . 4 1 . . . . . . . . 2 . . . . . . . 2 2 5 . . . . 1 . . . Energy Discharges 24 | . 4 1 . . . . . . . . 1 2 . 2 . . . 1 . 9 1 1 . . . 1 . . 1 Parts Rejected 1 | . . . . . . . . . . . . . . . . . . . . 1 . . . . . . . . . Data Loss (minor) 13 | . 2 1 . . . . . . . . 2 2 . . . . . . . 2 . 1 . . . 3 . . . Data Loss (major) 4 | . . . . . . . . . . . 4 . . . . . . . . . . . . . . . . . . Misfires 7 | . 5 1 . . . . . . . . 1 . . . . . . . . . . . . . . . . . . Alerts 3 | . . . . . . . . . . . . . . . . . . . . 3 . . . . . . . . . Misdirections 28 | . . . . . . . . . . . . . . . . . . . . 23 5 . . . . . . . . Targeting Errors 41 | . 11 2 . . . . . . . . 7 5 . 2 . . . . . 11 . 1 . . . 2 . . . Weapon Failures 2 | . 2 . . . . . . . . . . . . . . . . . . . . . . . . . . . . Overload Shots . | . . . . . . . . . . . . . . . . . . . . . . . . . . . . . . Overflow Damage 4318 | . . . 43 9 . . 52 4 . 456 144 149 . 389 64 . 200 131 . . . 92 332 113 145 224 693 623 455 Projectiles 162 | . . . 43 9 . . 30 4 . . 76 . . . . . . . . . . . . . . . . . . Explosions 698 | . . . . . . . 22 . . . 68 21 . 70 64 . 127 . . . . . . 84 . 24 . . 218 Melee 3458 | . . . . . . . . . . 456 . 128 . 319 . . 73 131 . . . 92 332 29 145 200 693 623 237 Knockbacks 45 | . . . 22 13 . . . . . . 5 5 . . . . . . . . . . . . . . . . . Impact . | . . . . . . . . . . . . . . . . . . . . . . . . . . . . . . Kinetic 37 | . . . 16 12 . . . . . . 4 5 . . . . . . . . . . . . . . . . . Secondary 8 | . . . 6 1 . . . . . . 1 . . . . . . . . . . . . . . . . . . Self-Inflicted Damage 392 | . . . . . . . . . . . 127 192 . 14 59 . . . . . . . . . . . . . . Shots 8 | . . . . . . . . . . . 3 2 . 1 2 . . . . . . . . . . . . . . Rammed 1 | . . . 1 . . . . . . . . . . . . . . . . . . . . . . . . . . Targets Rammed 2 | . . . 1 1 . . . . . . . . . . . . . . . . . . . . . . . . . Kicked . | . . . . . . . . . . . . . . . . . . . . . . . . . . . . . . Crushed 1 | . . . . 1 . . . . . . . . . . . . . . . . . . . . . . . . . Highest Temperature 380 | . 263 200 380 332 18 27 12 154 162 135 376 90 . 64 200 . 53 72 287 128 270 . . 20 . 122 . 228 159 Average Temperature 83 | . 65 101 112 106 6 16 4 38 66 72 105 38 . 30 102 . 24 31 155 57 108 . . 20 . 65 . 98 53 Received Heat Transfer 2902 | . 222 . 678 252 . 141 444 204 76 18 552 99 . 18 54 . 21 . . 21 . . . 30 27 . 18 18 9 Effects 9 | . 2 . 2 2 . . . . . . . . . . . . . . 1 . 2 . . . . . . . . Shutdowns 1 | . . . 1 . . . . . . . . . . . . . . . . . . . . . . . . . . Energy Bleed 5 | . 1 . 1 . . . . . . . . . . . . . . . 1 . 2 . . . . . . . . Interference 3 | . 1 . . 2 . . . . . . . . . . . . . . . . . . . . . . . . . Siege Activations . | . . . . . . . . . . . . . . . . . . . . . . . . . . . . . . Robots Corrupted 2 | . . . . . . . . . 1 . 1 . . . . . . . . . . . . . . . . . . Combat Hostiles 1 | . . . . . . . . . 1 . . . . . . . . . . . . . . . . . . . . Parts Fried 15 | . . . . . . . 4 9 . . 2 . . . . . . . . . . . . . . . . . . Impact Corruptions . | . . . . . . . . . . . . . . . . . . . . . . . . . . . . . . Robots Melted 2 | . . . . . . . 2 . . . . . . . . . . . . . . . . . . . . . . Combat Hostiles 2 | . . . . . . . 2 . . . . . . . . . . . . . . . . . . . . . . Parts Melted 8 | . . . . . . . 7 . . . 1 . . . . . . . . . . . . . . . . . . Heat Transferred 6708 | . . . 1122 185 296 555 3400 . 250 . 800 100 . . . . . . . . . . . . . . . . . Parts Sabotaged . | . . . . . . . . . . . . . . . . . . . . . . . . . . . . . . Parts Stolen . | . . . . . . . . . . . . . . . . . . . . . . . . . . . . . . Parts Stripped . | . . . . . . . . . . . . . . . . . . . . . . . . . . . . . . Power Chain Reactions 3 | . . . . . . . . . 1 . 2 . . . . . . . . . . . . . . . . . . Missiles Intercepted . | . . . . . . . . . . . . . . . . . . . . . . . . . . . . . . Alert | -11 -10 -10 -9 -9 -9 -7 -6 -6 -6 -6 -6 -5 -5 -5 -5 -5 -4 -4 -4 -4 -4 -4 -4 -3 -3 -3 -2 -2 -2 ------- Run | Scr Mat Min Mat Sto Rec Fac Fac Ext Cet Arc Hub Fac Was Fac Upp War Pro Fac Was Fac Upp Upp Zhi Pro Res Qua Res Tes Sec Peak Influence 1719 | 15 199 120 907 568 468 1719 1465 1120 1005 678 1628 985 344 527 . . . 200 118 278 . . . . 469 468 1003 654 164 Average Influence 432 | 4 86 60 434 412 308 1285 1289 772 868 599 1024 466 344 137 . . . 82 73 148 . . . . 305 332 604 370 72 Maximum Alert Level 5 | . . . 3 2 2 5 4 4 3 2 5 3 1 2 . . . 1 . 1 . . . . 2 2 3 2 . Low Security (%) 34 | 100 100 100 22 . 19 . . . . . . 1 . 74 . . . 99 100 75 . . . . 3 . 7 29 100 Level 1 23 | . . . 30 46 56 . . . . . 9 48 100 20 . . . . . 24 . . . . 83 86 9 14 . Level 2 21 | . . . 26 53 24 . . 38 9 100 8 35 . 4 . . . . . . . . . . 13 12 49 56 . Level 3 11 | . . . 19 . . 25 . 59 90 . 31 14 . . . . . . . . . . . . . . 33 . . Level 4 8 | . . . . . . 58 100 1 . . 50 . . . . . . . . . . . . . . . . . . Level 5 . | . . . . . . 3 . . . . . . . . . . . . . . . . . . . . . . . High Security . | . . . . . . 12 . . . . . . . . . . . . . . . . . . . . . . . Max Security . | . . . . . . . . . . . . . . . . . . . . . . . . . . . . . . Squads Dispatched 92 | . 5 . 7 2 . 6 4 5 . . 12 4 . 6 . . . 3 . 7 . . . . 7 1 5 12 6 Investigation 26 | . 3 . 3 . . 3 1 3 . . 4 2 . 2 . . . . . 1 . . . . . . 1 3 . Extermination 20 | . . . . . . 1 . . . . 3 2 . 2 . . . 2 . 2 . . . . 2 1 . 4 1 Reinforcement 30 | . 2 . 2 2 . 2 2 1 . . 3 . . 2 . . . 1 . 4 . . . . 1 . 4 2 2 Assault 10 | . . . 2 . . . 1 1 . . 2 . . . . . . . . . . . . . 1 . . 3 . Garrison 3 | . . . . . . . . . . . . . . . . . . . . . . . . . 3 . . . . Intercept 3 | . . . . . . . . . . . . . . . . . . . . . . . . . . . . . 3 Construction Impeded 6 | . . . . 1 . 2 . 1 . . 1 . . . . . . . . . . . . . . . . . 1 Haulers Reinforced 5 | . . . . . . . 1 . . . . . . 1 . . . . . 1 . . . . . . 2 . . Stealth | -11 -10 -10 -9 -9 -9 -7 -6 -6 -6 -6 -6 -5 -5 -5 -5 -5 -4 -4 -4 -4 -4 -4 -4 -3 -3 -3 -2 -2 -2 --------- Run | Scr Mat Min Mat Sto Rec Fac Fac Ext Cet Arc Hub Fac Was Fac Upp War Pro Fac Was Fac Upp Upp Zhi Pro Res Qua Res Tes Sec Distress Signals 28 | . 2 . 1 2 . . 2 1 1 . 5 1 . 3 . . . . . . . . . . 1 . 7 1 1 Communications Jammed 71 | . . . . . . . . . . . . . . . . . 23 6 . 6 . . . . 22 11 . . 3 Distress Signals 71 | . . . . . . . . . . . . . . . . . 23 6 . 6 . . . . 22 11 . . 3 Times Spotted 568 | . 32 7 78 20 25 33 30 49 10 21 53 26 . 32 7 . 14 7 5 18 . . . 9 24 9 26 21 12 Peak Tracking Total 8 | . 4 3 6 5 4 8 5 8 5 3 5 4 . 8 7 . 8 2 5 6 . . . 5 8 2 7 3 6 Tactical Retreats 49 | . 3 . 6 2 . . . 4 . . 2 5 . 4 1 . 4 2 . 3 . . . 3 5 1 2 . 2 Traps | -11 -10 -10 -9 -9 -9 -7 -6 -6 -6 -6 -6 -5 -5 -5 -5 -5 -4 -4 -4 -4 -4 -4 -4 -3 -3 -3 -2 -2 -2 ------- Run | Scr Mat Min Mat Sto Rec Fac Fac Ext Cet Arc Hub Fac Was Fac Upp War Pro Fac Was Fac Upp Upp Zhi Pro Res Qua Res Tes Sec Traps Triggered 20 | . 2 . . 1 . . 2 3 . . 2 1 . 1 . . . 5 . 2 . . . . . . . 1 . Indirectly 1 | . . . . . . . . . . . 1 . . . . . . . . . . . . . . . . . . Trap Hack Attempts . | . . . . . . . . . . . . . . . . . . . . . . . . . . . . . . Triggered . | . . . . . . . . . . . . . . . . . . . . . . . . . . . . . . Disarmed . | . . . . . . . . . . . . . . . . . . . . . . . . . . . . . . Reprogrammed 23 | . . . . . . . . . . . . . . 23 . . . . . . . . . . . . . . . Reused 9 | . . . 1 . . . . . . . . . . 8 . . . . . . . . . . . . . . . Traps Extracted . | . . . . . . . . . . . . . . . . . . . . . . . . . . . . . . Installed 1 | . . . 1 . . . . . . . . . . . . . . . . . . . . . . . . . . Triggered 15 | . . . 1 . . . . . . . . . . 8 . 5 . . . . . 1 . . . . . . . Machines | -11 -10 -10 -9 -9 -9 -7 -6 -6 -6 -6 -6 -5 -5 -5 -5 -5 -4 -4 -4 -4 -4 -4 -4 -3 -3 -3 -2 -2 -2 ---------- Run | Scr Mat Min Mat Sto Rec Fac Fac Ext Cet Arc Hub Fac Was Fac Upp War Pro Fac Was Fac Upp Upp Zhi Pro Res Qua Res Tes Sec Machines Disabled 74 | . 1 . 2 2 1 10 4 4 1 3 12 4 . . . 1 1 . . . . . . . 3 11 1 5 8 Max in Single Turn 4 | . 1 . 2 1 1 1 3 . 1 1 4 2 . . . 1 1 . . . . . . . 2 1 . 1 2 Garrison Access 7 | . . . . . . . . . . . . 1 . 1 . . . . . 1 . . . . . 1 1 1 1 Network Hub 1 | . . . . . . . . . . . 1 . . . . . . . . . . . . . . . . . . Machines Sabotaged 1 | . . . . . . . . . . . . . . . . . 1 . . . . . . . . . . . . Garrisons Compromised . | . . . . . . . . . . . . . . . . . . . . . . . . . . . . . . Overloaded Fab Kills . | . . . . . . . . . . . . . . . . . . . . . . . . . . . . . . Fab Network Shutdowns 4 | . . . . . . . . . . . . 1 . 1 . . . . . . . . . . . . 1 1 . Hacking | -11 -10 -10 -9 -9 -9 -7 -6 -6 -6 -6 -6 -5 -5 -5 -5 -5 -4 -4 -4 -4 -4 -4 -4 -3 -3 -3 -2 -2 -2 --------- Run | Scr Mat Min Mat Sto Rec Fac Fac Ext Cet Arc Hub Fac Was Fac Upp War Pro Fac Was Fac Upp Upp Zhi Pro Res Qua Res Tes Sec Machines Accessed 221 | . 9 . 10 9 11 5 3 18 4 1 10 16 . 29 . 3 1 17 . 10 . 1 4 . 6 16 5 16 17 Terminals 137 | . 6 . 4 9 6 . 2 18 4 . 10 7 . 16 . . 1 7 . 5 . . . . 5 11 2 9 15 Fabricators 17 | . . . . . . 1 1 . . . . 4 . 4 . . . 1 . 3 . . . . . . 1 2 . Repair Stations 14 | . 1 . 2 . . 2 . . . . . 1 . 2 . . . 1 . 1 . . . . . 2 . 2 . Recycling Units 18 | . 2 . 2 . 5 1 . . . . . 1 . 3 . . . 4 . . . . . . . . . . . Scanalyzers 14 | . . . 2 . . 1 . . . . . 1 . 2 . . . 2 . . . . . . 1 2 . 2 1 Garrison Access 12 | . . . . . . . . . . . . 2 . 2 . . . 2 . 1 . . . . . 1 2 1 1 Total Hacks 1009 | . 39 . 27 32 45 14 10 67 16 25 19 85 . 175 . 7 5 76 . 59 . 1 16 . 33 63 30 112 53 Successful 673 | . 18 . 16 17 24 7 3 45 11 25 4 61 . 133 . 7 2 51 . 33 . 1 16 . 18 39 18 77 47 Failed 332 | . 20 . 11 15 21 7 7 22 5 . 15 23 . 41 . . 3 25 . 26 . . . . 15 24 12 34 6 Catastrophic 43 | . 3 . . 1 4 1 . 3 1 . 5 4 . 2 . . 1 6 . 2 . . . . 2 2 2 4 . Database Lockouts 5 | . 1 . . . . . . . . . . 1 . 2 . . . . . . . . . . . . . 1 . Manual 440 | . 17 . 5 24 28 2 5 35 16 . 1 39 . 75 . . 4 44 . 25 . . . . 9 13 25 51 22 Terminals 666 | . 30 . 10 32 33 . 7 67 16 . 19 43 . 113 . . 5 46 . 32 . . . . 28 41 15 80 49 Fabricators 112 | . . . . . . 3 3 . . . . 27 . 33 . . . 3 . 22 . . . . . . 5 16 . Repair Stations 46 | . 3 . 6 . . 4 . . . . . 1 . 9 . . . 2 . 3 . . . . . 10 . 8 . Recycling Units 58 | . 6 . 6 . 12 4 . . . . . 7 . 9 . . . 14 . . . . . . . . . . . Scanalyzers 48 | . . . 5 . . 3 . . . . . 3 . 9 . . . 5 . . . . . . 5 8 . 7 3 Garrison Access 30 | . . . . . . . . . . . . 4 . 2 . . . 6 . 2 . . . . . 4 10 1 1 Terminal Hacks 351 | . 11 . 4 11 13 . 1 31 7 25 4 22 . 62 . 7 1 18 . 12 . 1 16 . 11 17 6 45 26 Record 39 | . . . . . . . . . 1 25 . . . 1 . 1 . 1 . . . . 5 . . 2 . 2 1 Part Schematic 39 | . . . . . 2 . . 5 1 . 1 8 . 6 . . . 1 . 1 . . 3 . . 3 1 4 3 Robot Schematic 2 | . . . . . 1 . . 1 . . . . . . . . . . . . . . . . . . . . . Robot Analysis 21 | . 4 . . . 1 . . 1 2 . . . . 1 . . . . . 1 . . 4 . 1 3 . 2 1 Prototype ID Bank 41 | . . . 2 1 3 . . 3 2 . . 1 . 6 . 5 . 2 . 2 . . 4 . 1 1 . 4 4 Open Door 21 | . . . . 2 . . . 10 1 . . . . . . 1 1 . . . . 1 . . . 1 . . 4 Level Access Points 3 | . . . . . . . . . . . . 1 . 1 . . . . . . . . . . . . . . 1 Branch Access Points 7 | . 1 . 1 . . . . . . . . . . 1 . . . 1 . 1 . . . . 1 . 1 . . Emergency Access Points 2 | . . . . . . . . . . . . . . 2 . . . . . . . . . . . . . . . Machine Index 4 | . . . . . . . . 1 . . . . . . . . . 1 . . . . . . . 1 . . 1 Terminal Index 10 | . 1 . . . 1 . . . . . 1 1 . 1 . . . 1 . . . . . . 1 . 1 1 1 Fabricator Index 7 | . . . . . . . . . . . . 1 . 2 . . . . . . . . . . 1 1 1 1 . Repair Station Index 1 | . . . . . . . . . . . . . . 1 . . . . . . . . . . . . . . . Recycling Unit Index 1 | . . . . . . . . . . . . . . 1 . . . . . . . . . . . . . . . Scanalyzer Index 1 | . . . . . . . . . . . . . . . . . . . . . . . . . . . . . 1 Garrison Index 4 | . . . . . . . . . . . . . . 1 . . . 1 . 1 . . . . . . . 1 . Alert Level 14 | . . . . . 2 . . 1 . . . 2 . 3 . . . 1 . . . . . . . . . 3 2 Unreport Threat 27 | . . . . 3 . . 1 5 . . 1 3 . 7 . . . . . . . . . . . . . 6 1 Locate Traps 20 | . 1 . . 1 . . . . . . 1 1 . 6 . . . . . 3 . . . . 2 2 . 2 1 Reprogram Traps 4 | . . . . . . . . . . . . . . 4 . . . . . . . . . . . . . . . Dispatch Records 5 | . . . . . . . . . . . . . . 1 . . . . . . . . . . . 1 . 3 . Security Status 3 | . . . . . . . . . . . . . . 2 . . . . . . . . . . . . . . 1 Transport Status 1 | . . . . . . . . . . . . . . . . . . . . . . . . . . . 1 . . Garrison Status 1 | . . . . . . . . . . . . . . 1 . . . . . . . . . . . . . . . Recall Investigation 5 | . 1 . . . . . . . . . . 1 . 1 . . . . . . . . . . . . . 2 . Recall Extermination 10 | . . . . . . . . . . . . . . 1 . . . 2 . 2 . . . . . 1 . 3 1 Recall Reinforcements 7 | . . . . . . . . 1 . . . . . 1 . . . . . . . . . . 1 . . 4 . Recall Assault 2 | . . . . . . . . . . . . . . . . . . . . . . . . . . . . 2 . Hauler Manifests 13 | . 1 . 1 1 1 . . 1 . . . 1 . 2 . . . 1 . . . . . . 1 . 1 1 1 Registered Components 8 | . . . . . 1 . . . . . . . . 2 . . . 1 . 1 . . . . 1 . . 1 1 Registered Prototypes 6 | . . . . . . . . . . . . 1 . 2 . . . . . . . . . . 1 . . 1 1 Zone Layout 20 | . 2 . . 3 1 . . 2 . . . 1 . 5 . . . 5 . . . . . . . 1 . . . Protovariant Controls 2 | . . . . . . . . . . . . . . . . . . . . . . . . . . . . 2 . Fabricator Hacks 64 | . . . . . . 2 2 . . . . 17 . 22 . . . 1 . 10 . . . . . . 2 8 . Network Status 10 | . . . . . . . . . . . . 3 . 5 . . . 1 . 1 . . . . . . . . . Load Schematic 26 | . . . . . . 1 1 . . . . 7 . 8 . . . . . 4 . . . . . . 1 4 . Build 28 | . . . . . . 1 1 . . . . 7 . 9 . . . . . 5 . . . . . . 1 4 . Repair Station Hacks 33 | . 2 . 4 . . 2 . . . . . 1 . 8 . . . 2 . 2 . . . . . 6 . 6 . Scan Component 16 | . 1 . 2 . . 1 . . . . . . . 4 . . . 1 . 1 . . . . . 3 . 3 . Repair 15 | . . . 2 . . 1 . . . . . . . 4 . . . 1 . 1 . . . . . 3 . 3 . Refit 2 | . 1 . . . . . . . . . . 1 . . . . . . . . . . . . . . . . . Recycling Unit Hacks 19 | . 1 . 2 . 4 1 . . . . . 4 . 3 . . . 4 . . . . . . . . . . . Process 1 | . . . . . . . . . . . . 1 . . . . . . . . . . . . . . . . . Report Inventory 4 | . . . . . . . . . . . . 2 . 1 . . . 1 . . . . . . . . . . . Retrieve Matter 1 | . . . . . . . . . . . . 1 . . . . . . . . . . . . . . . . . Retrieve Components 13 | . 1 . 2 . 4 1 . . . . . . . 2 . . . 3 . . . . . . . . . . . Scanalyzer 37 | . . . 4 . . 2 . . . . . 3 . 7 . . . 4 . . . . . . 4 6 . 4 3 Insert Component 25 | . . . 2 . . 1 . . . . . 1 . 3 . . . 3 . . . . . . 3 6 . 3 3 Analyze 12 | . . . 2 . . 1 . . . . . 2 . 4 . . . 1 . . . . . . 1 . . 1 . Garrison Access Hacks 6 | . . . . . . . . . . . . 1 . 1 . . . . . 1 . . . . . 1 . 1 1 Seal Access 6 | . . . . . . . . . . . . 1 . 1 . . . . . 1 . . . . . 1 . 1 1 Unauthorized Hacks 379 | . 10 . 5 17 18 2 . 30 9 . 1 28 . 68 . . 3 50 . 22 . . . . 7 20 25 29 35 Terminals 100 | . 4 . . 6 2 . . 14 4 . . 4 . 16 . . 1 8 . 3 . . . . 3 9 2 7 17 Track 29 | . 2 . . 1 . . . 4 1 . . 2 . 5 . . . 1 . . . . . . . 1 1 2 9 Assimilate 8 | . . . . . . . . . . . . . . 3 . . . 1 . 2 . . . . . 1 . . 1 Botnet 57 | . 2 . . 5 2 . . 10 3 . . 2 . 6 . . . 5 . . . . . . 3 7 1 4 7 Disrupt 1 | . . . . . . . . . . . . . . 1 . . . . . . . . . . . . . . . Operators 4 | . . . . . . . . . . . . . . 1 . . . 1 . 1 . . . . . . . 1 . Sabotage 1 | . . . . . . . . . . . . . . . . . 1 . . . . . . . . . . . . Fabricators 28 | . . . . . . . . . . . . 5 . 10 . . . 2 . 5 . . . . . . 1 5 . Report 5 | . . . . . . . . . . . . 1 . 2 . . . 1 . . . . . . . . . 1 . Prioritize 9 | . . . . . . . . . . . . 1 . 3 . . . . . 2 . . . . . . 1 2 . Siphon 10 | . . . . . . . . . . . . 2 . 4 . . . . . 3 . . . . . . . 1 . Haulers 4 | . . . . . . . . . . . . 1 . 1 . . . 1 . . . . . . . . . 1 . Repair Stations . | . . . . . . . . . . . . . . . . . . . . . . . . . . . . . . Recycling Units 19 | . . . 2 . 5 . . . . . . 1 . 3 . . . 8 . . . . . . . . . . . Monitor 1 | . . . . . . . . . . . . 1 . . . . . . . . . . . . . . . . . Reject 5 | . . . . . . . . . . . . . . 1 . . . 4 . . . . . . . . . . . Mask 5 | . . . . . . . . . . . . . . 1 . . . 4 . . . . . . . . . . . Tunnel 8 | . . . 2 . 5 . . . . . . . . 1 . . . . . . . . . . . . . . . Scanalyzers 1 | . . . . . . . . . . . . . . . . . . . . . . . . . . . . 1 . Researchers 1 | . . . . . . . . . . . . . . . . . . . . . . . . . . . . 1 . Garrison Access 15 | . . . . . . . . . . . . 3 . 1 . . . 4 . . . . . . . . 7 . . Broadcast 3 | . . . . . . . . . . . . 1 . . . . . 1 . . . . . . . . 1 . . Reprogram 8 | . . . . . . . . . . . . 1 . 1 . . . 2 . . . . . . . . 4 . . Intercept 2 | . . . . . . . . . . . . . . . . . . . . . . . . . . . 2 . . Watchers 2 | . . . . . . . . . . . . 1 . . . . . 1 . . . . . . . . . . . Data Cores Recovered 5 | . 1 . 1 . . 1 . . . . 1 . . 1 . . . . . . . . . . . . . . . Used 2 | . 1 . . . . . . . . . . . . 1 . . . . . . . . . . . . . . . Hacking Detections 157 | . 9 . 7 9 9 5 3 15 3 . 10 13 . 18 . . 1 9 . 7 . . . . 6 9 4 13 7 Full Trace Events 22 | . 3 . 1 . 3 2 1 3 . . 4 1 . . . . . . . 1 . . . . . . 1 2 . Feedback Events . | . . . . . . . . . . . . . . . . . . . . . . . . . . . . . . Feedback Blocked . | . . . . . . . . . . . . . . . . . . . . . . . . . . . . . . Robot Schematics Acquired 2 | . . . . . 1 . . 1 . . . . . . . . . . . . . . . . . . . . . Robots Built 4 | . . . . . . 1 1 . . . . 2 . . . . . . . . . . . . . . . . . Matter 612 | . . . . . . 153 153 . . . . 306 . . . . . . . . . . . . . . . . . Time 134 | . . . . . . 40 40 . . . . 54 . . . . . . . . . . . . . . . . . Total Robot Build Rating 4 | . . . . . . 1 1 . . . . 2 . . . . . . . . . . . . . . . . . Part Schematics Acquired 49 | . . . 2 . 2 1 . 5 1 . 1 9 . 9 . . . 2 . 1 . . 3 . 1 3 1 5 3 Parts Built 26 | . . . . . . . . . . . . 8 . 7 . . . . . 5 . . . . . . 1 5 . Matter 4762 | . . . . . . . . . . . . 974 . 1484 . . . . . 891 . . . . . . 351 1062 . Time 1528 | . . . . . . . . . . . . 364 . 424 . . . . . 462 . . . . . . 93 185 . Total Part Build Rating 170 | . . . . . . . . . . . . 47 . 48 . . . . . 29 . . . . . . 7 39 . Parts Repaired 15 | . . . 2 . . 1 . . . . . . . 4 . . . 1 . 1 . . . . . 3 . 3 . Time 734 | . . . 112 . . 50 . . . . . . . 176 . . . 40 . 124 . . . . . 62 . 170 . Parts Recycled . | . . . . . . . . . . . . . . . . . . . . . . . . . . . . . . Recycled Matter 224 | . . . . . . . . . . . . 224 . . . . . . . . . . . . . . . . . Retrieved Matter 224 | . . . . . . . . . . . . 224 . . . . . . . . . . . . . . . . . Retrieved Components 58 | . 10 . 18 . 15 1 . . . . . . . 3 . . . 11 . . . . . . . . . . . Parts Scanalyzed 12 | . . . 2 . . 1 . . . . . 1 . 3 . . . 2 . . . . . . 1 . . 2 . Part Schematics Acquired 10 | . . . 2 . . 1 . . . . . 1 . 3 . . . 1 . . . . . . 1 . . 1 . Parts Damaged . | . . . . . . . . . . . . . . . . . . . . . . . . . . . . . . Bothacking | -11 -10 -10 -9 -9 -9 -7 -6 -6 -6 -6 -6 -5 -5 -5 -5 -5 -4 -4 -4 -4 -4 -4 -4 -3 -3 -3 -2 -2 -2 ------------ Run | Scr Mat Min Mat Sto Rec Fac Fac Ext Cet Arc Hub Fac Was Fac Upp War Pro Fac Was Fac Upp Upp Zhi Pro Res Qua Res Tes Sec Used RIF Installer . | . . . . . . . . . . . . . . . . . . . . . . . . . . . . . . Robots Hacked . | . . . . . . . . . . . . . . . . . . . . . . . . . . . . . . Non-combat . | . . . . . . . . . . . . . . . . . . . . . . . . . . . . . . Combat . | . . . . . . . . . . . . . . . . . . . . . . . . . . . . . . Robot Hacks Applied . | . . . . . . . . . . . . . . . . . . . . . . . . . . . . . . Relay Couplers Released 1 | . . . . . . . . . . . . . . . . . . . . . . . . . . . 1 . . Machine Destruction 1 | . . . . . . . . . . . . . . . . . . . . . . . . . . . 1 . . Robots Rewired 27 | . . . . . 17 . . 9 . . 1 . . . . . . . . . . . . . . . . . . Allies Hacked 3 | . . . . . . 1 . . . . . . . 2 . . . . . . . . . . . . . . . Hacks Repelled . | . . . . . . . . . . . . . . . . . . . . . . . . . . . . . . Allies | -11 -10 -10 -9 -9 -9 -7 -6 -6 -6 -6 -6 -5 -5 -5 -5 -5 -4 -4 -4 -4 -4 -4 -4 -3 -3 -3 -2 -2 -2 -------- Run | Scr Mat Min Mat Sto Rec Fac Fac Ext Cet Arc Hub Fac Was Fac Upp War Pro Fac Was Fac Upp Upp Zhi Pro Res Qua Res Tes Sec Total Allies 88 | . . . . . 17 1 1 24 5 . 1 6 20 3 . . . 1 . 1 . . . . . 1 6 . 1 Largest Group 23 | . . . . . 17 13 1 11 13 13 10 5 23 9 . . . 1 . 1 . . . . . 1 5 . 1 Highest-Rated Group 884 | . . . . . 317 263 10 428 700 700 605 126 884 349 . . . 26 . 26 . . . . . 26 345 . 44 Highest-Rated Ally 156 | . . . . . 34 34 10 156 134 94 94 29 50 50 . . . 26 . 26 . . . . . 26 69 . 44 Total Orders 32 | . . . . . . . 2 . 2 2 2 15 . 4 . . . . . . . . . . 1 3 . . 1 STAY 2 | . . . . . . . . . 1 . . . . . . . . . . . . . . . . 1 . . . GOTO 19 | . . . . . . . 1 . . 1 1 10 . 3 . . . . . . . . . . 1 1 . . 1 FOLLOW 11 | . . . . . . . 1 . 1 1 1 5 . 1 . . . . . . . . . . . 1 . . . Ally Attacks 607 | . . . . . 35 26 . 230 59 27 108 11 . 62 . . . . . . . . . . . . 49 . . Total Damage 17028 | . . . . . 875 2281 . 4992 1214 695 3482 136 . 1013 . . . . . . . . . . . . 2340 . . Kills 151 | . . . . . 15 30 . 35 8 4 34 2 . 12 . . . . . . . . . . . . 11 . . Allies Corrupted 1 | . . . . . . . . . . . . . . 1 . . . . . . . . . . . . . . . Allies Melted 1 | . . . . . . . . . . . 1 . . . . . . . . . . . . . . . . . . Intel | -11 -10 -10 -9 -9 -9 -7 -6 -6 -6 -6 -6 -5 -5 -5 -5 -5 -4 -4 -4 -4 -4 -4 -4 -3 -3 -3 -2 -2 -2 ------- Run | Scr Mat Min Mat Sto Rec Fac Fac Ext Cet Arc Hub Fac Was Fac Upp War Pro Fac Was Fac Upp Upp Zhi Pro Res Qua Res Tes Sec Robot Analysis Total 21 | . 4 . . . 1 . . 1 2 . . . . 1 . . . . . 1 . . 4 . 1 3 . 2 1 Derelict Logs Recovered 6 | . . 1 . . . . . . . . . . . . . . 3 . . . 1 1 . . . . . . . Drone Launches 4 | . . . . . . . . . . . . . . . . . . . . . . . . . 4 . . . . Drone Recoveries . | . . . . . . . . . . . . . . . . . . . . . . . . . . . . . . Exploration | -11 -10 -10 -9 -9 -9 -7 -6 -6 -6 -6 -6 -5 -5 -5 -5 -5 -4 -4 -4 -4 -4 -4 -4 -3 -3 -3 -2 -2 -2 ------------- Run | Scr Mat Min Mat Sto Rec Fac Fac Ext Cet Arc Hub Fac Was Fac Upp War Pro Fac Was Fac Upp Upp Zhi Pro Res Qua Res Tes Sec Turns Passed 29478 | 113 1536 768 2317 755 869 661 793 1258 394 376 1575 2240 108 2799 96 471 2150 914 37 833 398 1101 95 397 847 1271 1058 2341 907 Spaces Moved 33150 | 59 1006 629 1130 303 456 435 398 733 207 196 817 2445 267 4952 202 792 1245 1765 89 1580 437 999 163 562 1204 2331 2260 3945 1543 Core 6 | 5 . . . . . . . . . . . . . . . . . . . . . . . . . . . . 1 Treads 1201 | . 13 . 673 303 31 . . . . . 181 . . . . . . . . . . . . . . . . . . Legs 1331 | . . . . . . . . . . . 505 826 . . . . . . . . . . . . . . . . . Wheels 4658 | 54 993 629 457 . 425 435 398 733 207 196 131 . . . . . . . . . . . . . . . . . . Hover . | . . . . . . . . . . . . . . . . . . . . . . . . . . . . . . Flight 25954 | . . . . . . . . . . . . 1619 267 4952 202 792 1245 1765 89 1580 437 999 163 562 1204 2331 2260 3945 1542 Fastest Speed 30 | 50 100 110 110 160 130 120 110 120 120 130 120 32 32 32 32 32 32 32 32 32 34 34 34 34 30 30 34 34 34 Average Speed 53 | 95 116 110 145 163 132 123 116 124 128 130 144 61 32 32 32 32 32 32 32 33 34 34 34 34 33 30 34 34 34 Slowest Speed 1350 | 100 180 110 180 180 160 150 120 130 130 130 180 150 32 32 32 32 32 112 32 117 34 34 34 34 34 112 117 117 1350 Overloaded Moves . | . . . . . . . . . . . . . . . . . . . . . . . . . . . . . . Propulsion Burnouts . | . . . . . . . . . . . . . . . . . . . . . . . . . . . . . . Robots Hopped 75 | . . . . . . . . . . . . 1 . 36 . . 2 5 1 5 . . . 1 2 1 12 5 4 Cave-ins Triggered 1 | . 1 . . . . . . . . . . . . . . . . . . . . . . . . . . . . Teleports 1 | . . . . . . . . . . . . . . . . . . . . . . . . . . . . 1 . Exploration Rate (%) 64 | 6 98 99 84 42 97 19 10 86 74 86 76 34 94 73 38 90 61 42 81 42 60 76 60 74 24 93 47 96 71 Regions Visited 29 Branch Regions 17 Pre-discovered Areas 16 | . . 1 2 . 5 . . . . . . . . 1 . . 2 . . . 1 1 3 . . . . . . Known Exits Taken 15 | . 1 . 1 . . . . . . . . . . 1 1 1 1 . . 1 1 1 1 1 1 1 1 1 . Unknown Exits Taken 10 | 1 . 1 . 1 1 1 1 1 1 1 1 . . . . . . . . . . . . . . . . . . Scrap Searched 12 | . . 2 . . . . . . . . . . . . 2 . 1 . . . 2 2 . 3 . . . . . Spaces Dug 550 | . 4 . 1 6 . . 1 . . . 17 50 . 118 3 9 20 29 2 52 11 9 . 17 23 40 40 60 38 Terrain Destroyed 1435 | . 9 . 16 20 . 35 52 . 15 17 224 103 . 179 100 9 108 71 2 52 11 9 . 138 24 89 40 72 40 Melee 521 | . . . . 6 . . . . . . . 48 . 118 3 9 20 29 2 52 11 9 . 17 23 40 40 60 34 Projectile 118 | . 9 . 6 14 . . 11 . . 17 41 13 . 1 . . . . . . . . . . . . . . 6 AOE 796 | . . . 10 . . 35 41 . 15 . 183 42 . 60 97 . 88 42 . . . . . 121 1 49 . 12 . Actions | -11 -10 -10 -9 -9 -9 -7 -6 -6 -6 -6 -6 -5 -5 -5 -5 -5 -4 -4 -4 -4 -4 -4 -4 -3 -3 -3 -2 -2 -2 --------- Run | Scr Mat Min Mat Sto Rec Fac Fac Ext Cet Arc Hub Fac Was Fac Upp War Pro Fac Was Fac Upp Upp Zhi Pro Res Qua Res Tes Sec Total 41783 | 86 1172 674 1466 436 672 511 583 938 314 261 1011 3023 286 5793 217 986 2935 2011 91 1749 665 1737 184 716 1542 2784 2415 4745 1780 Wait 5845 | . 17 1 48 40 15 30 22 24 80 15 42 358 8 648 . 170 1660 112 2 69 216 722 . 122 253 333 78 629 131 Move 32988 | 58 1005 628 1129 302 455 434 397 732 206 195 816 2443 266 4883 201 791 1240 1756 86 1571 436 998 162 559 1200 2328 2241 3935 1535 Hop 60 | . . . . . . . . . . . . 1 . 32 . . 2 4 1 3 . . . 1 1 1 6 4 4 Pick Up 201 | 6 13 8 21 1 1 7 23 6 1 6 7 21 1 9 2 2 . 9 . 3 . 1 1 . 3 19 6 17 7 Fast Attach 150 | 7 2 2 18 6 1 4 10 9 5 . 16 11 3 7 . 4 . 3 . 5 . . 6 . 1 7 7 13 3 Attach 80 | . 4 2 5 1 . 3 10 1 . 3 4 14 . 2 2 . . 5 . 1 . 1 . . 4 4 2 9 3 Detach 25 | . 1 . . . 1 3 2 . 1 . 1 3 . . . . . 3 . . . . . . 2 3 1 4 . Swap 183 | 1 15 2 18 9 . 3 4 12 1 6 11 20 5 14 2 2 2 3 . 5 2 . . 3 5 2 1 14 21 Drop 293 | . 7 9 44 7 2 2 24 15 8 5 14 47 3 13 . 6 . 10 . 6 . 1 6 . 3 18 12 23 8 Fire 823 | 14 108 22 181 63 26 25 83 70 8 23 100 34 . 20 7 . 6 3 . . . . . 7 1 3 . 1 18 Melee 810 | . . . . 6 . . . . 4 8 . 71 . 165 3 11 25 49 2 68 11 14 9 24 67 66 61 96 50 Ram . | . . . . . . . . . . . . . . . . . . . . . . . . . . . . . . Kick . | . . . . . . . . . . . . . . . . . . . . . . . . . . . . . . Crush 2 | . . . 1 1 . . . . . . . . . . . . . . . . . . . . . . . . . Escape Stasis 104 | . . . . . . . 8 24 . . . . . . . . . 54 . 18 . . . . . . . . . Rewire 216 | . . . . . 171 . . 45 . . . . . . . . . . . . . . . . . . . . . Trap 1 | . . . 1 . . . . . . . . . . . . . . . . . . . . . . . . . . Miscellaneous 2 | . . . . . . . . . . . . . . . . . . . . . . . . . 2 . . . . Route ------- -11/Scrapyard -10/Materials (discovered 5 exits: *Mat x3 / *Min x2) -10/Mines (discovered 2 exits: *Mat x2) -9/Materials (discovered 5 exits: [*Mat x3] / *Min / *Sto) -9/Storage -9/Recycling -7/Factory -6/Factory -6/Extension (discovered 2 exits: *Fac / *Cet) -6/Cetus -6/Archives (discovered 3 exits: *Fac / *Hub x2) -6/Hub_04(d) (discovered 3 exits: *Fac x3) -5/Factory (discovered 4 exits: Fac x4) -5/Waste -5/Factory (discovered 6 exits: *Fac x4 / *Upp x2) -5/Upper Caves -5/Warlord -4/Proximity Caves -4/Factory (discovered 4 exits: *Res x2 / *Upp x2) -4/Waste -4/Factory (discovered 3 exits: Res / *Upp x2) -4/Upper Caves -4/Upper Caves -4/Zhirov -3/Proximity Caves -3/Research (discovered 3 exits: Arm / *Qua x2) -3/Quarantine -2/Research (discovered 2 exits: *Tes x2) -2/Testing (discovered 2 exits: *Acc / *Sec) -2/Section 7 (discovered 1 exit: *Acc) History --------- Turn | Location | Event 27 | -11/Scrapyard | Discovered new exit (range 15) 114 | -11/Scrapyard | Entered Materials 314 | -10/Materials | Build established: Mutant 318 | -10/Materials | Crushed by falling debris 465 | -10/Materials | Discovered new exit (range 16) 677 | -10/Materials | Discovered new exit (range 8) 808 | -10/Materials | Discovered new exit (range 3) 894 | -10/Materials | Discovered new exit (range 14) 1273 | -10/Materials | Discovered new exit (range 6) 1285 | -10/Materials | Identified exit to Mines 1285 | -10/Materials | Central database locked down 1650 | -10/Materials | Entered Mines 1692 | -10/Mines | Lost 3 parts (1n2w) 1719 | -10/Mines | Discovered new exit (range 11) 1752 | -10/Mines | Learned location of Storage (-9) 1772 | -10/Mines | Found a hidden stash of uninstalled traps 2005 | -10/Mines | Build established: Scavenger-Mutant 2205 | -10/Mines | Found a damaged Exp. Sensor Array with a note attached 2222 | -10/Mines | Found Prototype Device 2298 | -10/Mines | Discovered new exit (range 10) 2381 | -10/Mines | Build established: Mutant 2418 | -10/Mines | Entered Materials 2418 | -9/Materials | Evolved 2 slots: Propulsion x1, Utility x1 2623 | -9/Materials | Discovered new exit (range 10) 3050 | -9/Materials | Discovered new exit (range 3) 3387 | -9/Materials | Repaired Med. Armor Plating 3415 | -9/Materials | Discovered new exit (range 5) 3514 | -9/Materials | Build established: Scavenger-Mutant 3609 | -9/Materials | Discovered new exit (range 3) 3686 | -9/Materials | Destroyed 8 combat bots 3804 | -9/Materials | Identified exit to Mines 3804 | -9/Materials | Identified exit to Storage 4018 | -9/Materials | First assault squad dispatched 4075 | -9/Materials | Build established: Mutant 4257 | -9/Materials | Identified Exp. Sensor Array 4281 | -9/Materials | Core integrity fell below 50% 4349 | -9/Materials | Discovered new exit (range 8) 4401 | -9/Materials | Repaired Exp. Sensor Array 4735 | -9/Materials | Entered Storage 5041 | -9/Storage | Core integrity fell below 20% 5342 | -9/Storage | Used back door to open Recycling access 5342 | -9/Storage | Discovered new exit (range 5) 5490 | -9/Storage | Entered Recycling 5515 | -9/Recycling | Spotter reported a threat 5541 | -9/Recycling | Spotter reported a threat 5580 | -9/Recycling | Spotter reported a threat 5580 | -9/Recycling | Spotter reported a threat 5594 | -9/Recycling | Spotter reported a threat 5597 | -9/Recycling | Spotter reported a threat 5633 | -9/Recycling | Spotter reported a threat 5640 | -9/Recycling | Spotter reported a threat 5655 | -9/Recycling | Spotter reported a threat 5661 | -9/Recycling | Spotter reported a threat 5698 | -9/Recycling | Spotter reported a threat 5703 | -9/Recycling | Discovered new exit (range 15) 5770 | -9/Recycling | Spotter reported a threat 5778 | -9/Recycling | Spotter reported a threat 5784 | -9/Recycling | Spotter reported a threat 5795 | -9/Recycling | Spotter reported a threat 5805 | -9/Recycling | Spotter reported a threat 5824 | -9/Recycling | Spotter reported a threat 5858 | -9/Recycling | Spotter reported a threat 5886 | -9/Recycling | Spotter reported a threat 5903 | -9/Recycling | Spotter reported a threat 5906 | -9/Recycling | Spotter reported a threat 5925 | -9/Recycling | Spotter reported a threat 5929 | -9/Recycling | Spotter reported a threat 6036 | -9/Recycling | Spotter reported a threat 6063 | -9/Recycling | Spotter reported a threat 6115 | -9/Recycling | Spotter reported a threat 6115 | -9/Recycling | Spotter reported a threat 6176 | -9/Recycling | Build established: Commander-Mutant 6191 | -9/Recycling | Spotter reported a threat 6259 | -9/Recycling | Spotter reported a threat 6287 | -9/Recycling | Spotter reported a threat 6340 | -9/Recycling | Spotter reported a threat 6345 | -9/Recycling | Spotter reported a threat 6359 | -9/Recycling | Entered Factory 6359 | -7/Factory | Accompanied by 13 allies 6359 | -7/Factory | Evolved 4 slots: Propulsion x1, Utility x3 6575 | -7/Factory | Fabricated O-16 Technician (x1) 6860 | -7/Factory | Repaired Lrn. Missile Launcher 6936 | -7/Factory | High security lockdown imminent 6999 | -7/Factory | Discovered new exit (range 15) 7016 | -7/Factory | High security lockdown engaged 7020 | -7/Factory | Entered another Factory area 7020 | -6/Factory | Evolved 2 slots: Utility x2 7352 | -6/Factory | Fabricated O-16 Technician (x1) 7370 | -6/Factory | First assault squad dispatched 7484 | -6/Factory | Destroyed 7 combat bots 7705 | -6/Factory | Build established: Hauler-Mutant 7795 | -6/Factory | Discovered new exit (range 15) 7813 | -6/Factory | Entered Extension 7865 | -6/Extension | Rescued A7 7914 | -6/Extension | Rescued a captive Derelict 7914 | -6/Extension | Rescued a captive Derelict 7926 | -6/Extension | Rescued a captive Derelict 8050 | -6/Extension | Build established: Scavenger-Mutant 8059 | -6/Extension | Rescued a captive Derelict 8060 | -6/Extension | Rescued a captive Derelict 8075 | -6/Extension | Rescued a captive Derelict 8075 | -6/Extension | Rescued a captive Derelict 8163 | -6/Extension | First assault squad dispatched 8353 | -6/Extension | Spotted B-75 Beast 8369 | -6/Extension | Spotted B-75 Beast 8379 | -6/Extension | Allies destroyed B-75 Beast 8401 | -6/Extension | Allies destroyed B-75 Beast 8488 | -6/Extension | Disrupted transfer network 8591 | -6/Extension | Rescued a captive Derelict 8700 | -6/Extension | Rescued a captive Derelict 8718 | -6/Extension | Rescued a captive Derelict 8720 | -6/Extension | Rescued a captive Derelict 8923 | -6/Extension | Rescued a captive Derelict 8934 | -6/Extension | Rescued a captive Derelict 9006 | -6/Extension | Rescued a captive Derelict 9042 | -6/Extension | Discovered new exit (range 10) 9043 | -6/Extension | Discovered new exit (range 6) 9071 | -6/Extension | Entered Cetus 9071 | -6/Cetus | Accompanied by 11 allies 9076 | -6/Cetus | Acquired a Cetus Manufacturing Module code from A7 9090 | -6/Cetus | Spotted Cetus Guard 9090 | -6/Cetus | Spotted Cetus Guard 9091 | -6/Cetus | Spotted Cetus Guard 9091 | -6/Cetus | Spotted Cetus Guard 9102 | -6/Cetus | Allies destroyed Cetus Guard 9107 | -6/Cetus | Extracted ID and sensor layout for unrecognized location from A7's data core 9108 | -6/Cetus | Allies destroyed Cetus Guard 9109 | -6/Cetus | Destroyed Cetus Guard 9110 | -6/Cetus | Allies destroyed Cetus Guard 9225 | -6/Cetus | Started Cetus Manufacturing Module 9250 | -6/Cetus | Manufactured an Enhanced Grunt 9273 | -6/Cetus | Discovered new exit (range 16) 9275 | -6/Cetus | Manufactured an Enhanced Grunt 9300 | -6/Cetus | Manufactured an Enhanced Grunt 9325 | -6/Cetus | Manufactured an Enhanced Grunt 9350 | -6/Cetus | Manufactured an Enhanced Grunt 9409 | -6/Cetus | Found a strange terminal 9465 | -6/Cetus | Entered Archives 9465 | -6/Archives | Accompanied by 13 allies 9496 | -6/Archives | Unable to access archive contents 9499 | -6/Archives | Discovered new exit (range 16) 9509 | -6/Archives | Unable to access archive contents 9525 | -6/Archives | Unable to access archive contents 9528 | -6/Archives | Discovered new exit (range 16) 9561 | -6/Archives | Discovered new exit (range 16) 9586 | -6/Archives | Build established: Commander-Mutant 9841 | -6/Archives | Entered Hub_04(d) 9841 | -6/Hub_04(d) | Accompanied by 10 allies 10064 | -6/Hub_04(d) | Discovered new exit (range 15) 10191 | -6/Hub_04(d) | First assault squad dispatched 10194 | -6/Hub_04(d) | Build established: Scavenger-Mutant 10340 | -6/Hub_04(d) | Lost 4 parts (3u1w) 10717 | -6/Hub_04(d) | Found Prototype Device 10717 | -6/Hub_04(d) | Identified Exp. Thermal Shield 10897 | -6/Hub_04(d) | Core integrity fell below 50% 11058 | -6/Hub_04(d) | Discovered new exit (range 9) 11196 | -6/Hub_04(d) | Discovered new exit (range 12) 11409 | -6/Hub_04(d) | Network Hub disabled 11416 | -6/Hub_04(d) | Entered Factory 11416 | -5/Factory | Evolved 2 slots: Power x1, Propulsion x1 11636 | -5/Factory | Fabricated O-16 Technician (x1) 11669 | -5/Factory | Fabricated O-16 Technician (x1) 12146 | -5/Factory | Found Prototype Launcher 12146 | -5/Factory | Identified Scatter Rocket Array 12545 | -5/Factory | Fabricated Exp. Signal Interpreter? 12624 | -5/Factory | Fabricated Nuclear Pulse Array (x2) 12928 | -5/Factory | Build established: Hacker-Sprinter 13129 | -5/Factory | Central database locked down 13378 | -5/Factory | Fabricated Nuclear Pulse Array (x2) 13502 | -5/Factory | Fabricated Adv. Hacking Suite (x1) 13512 | -5/Factory | Local fabrication network quarantined 13557 | -5/Factory | Fabricated Imp. Dynamic Insulation System (x2) 13593 | -5/Factory | Identified exit to Factory 13656 | -5/Factory | Manually triggered Chute Trap 13656 | -5/Factory | Sucked down chute 13656 | -5/Factory | Entered Waste 13657 | -5/Waste | Joined by Warlord forces that had cleared the area 13699 | -5/Waste | Found Prototype Processor 13717 | -5/Waste | Found Prototype Device 13717 | -5/Waste | Identified Exp. Thermal Defense Suite 13723 | -5/Waste | Discovered new exit (range 15) 13743 | -5/Waste | Found Adv. Powered Armor 13756 | -5/Waste | Identified exit to Factory 13764 | -5/Waste | Entered Factory 13764 | -5/Factory | Accompanied by 8 allies 13775 | -5/Factory | 4 allies followed down the chute 13812 | -5/Factory | Identified Exp. Melee Analysis Suite 13916 | -5/Factory | Fabricated Exp. Propulsion Shielding (x1) 13999 | -5/Factory | Identified exit to Upper Caves 13999 | -5/Factory | Central database locked down 14092 | -5/Factory | Repaired Broken Exp. Melee Analysis Suite? 14131 | -5/Factory | Repaired Adv. Powered Armor 14430 | -5/Factory | P-70 Sage assimilated allied QH-3FN(d) 14436 | -5/Factory | P-70 Sage assimilated allied 6L-EGM(g) 14548 | -5/Factory | Fabricated Enh. Force Lance (x1) 14581 | -5/Factory | Fabricated Enh. Force Lance (x1) 14631 | -5/Factory | Fabricated Mni. Smartbomb Launcher (x1) 15004 | -5/Factory | Fabricated Adv. Hacking Suite? 15268 | -5/Factory | Discovered exit to Factory (range 8) 15805 | -5/Factory | Fabricated Adv. Transmission Jammer? 15870 | -5/Factory | Local fabrication network quarantined 15908 | -5/Factory | Fabricated Adv. Core Analyzer (x1) 16276 | -5/Factory | Destroyed 8 combat bots 16390 | -5/Factory | Repaired Exp. Sensor Array 16432 | -5/Factory | Repaired Exp. Propulsion Shielding 16563 | -5/Factory | Entered Upper Caves 16582 | -5/Upper Caves | Attracted the attention of an 0b10 checkpoint 16612 | -5/Upper Caves | Destroyed 7 combat bots 16650 | -5/Upper Caves | A Derelict revealed a hidden shortcut to "reach the base" 16651 | -5/Upper Caves | Identified exit to Warlord 16659 | -5/Upper Caves | Entered Warlord 16675 | -5/Warlord | System corruption cleaned by Quarantine Array 16915 | -5/Warlord | Met Warlord 16917 | -5/Warlord | Found Prototype Device 16917 | -5/Warlord | Identified Exp. Phase Shifter 16923 | -5/Warlord | Found Prototype Device 16923 | -5/Warlord | Identified Exp. Focal Shield 16940 | -5/Warlord | Warlord's base attacked by MAIN.C 17120 | -5/Warlord | Opened side exit 17126 | -5/Warlord | Discovered new exit (range 11) 17128 | -5/Warlord | Identified exit to Proximity Caves 17130 | -5/Warlord | Entered Proximity Caves 17478 | -4/Proximity Caves | Build established: Hacker-Scout 17704 | -4/Proximity Caves | Spotted B-86 Titan 19215 | -4/Proximity Caves | Attracted the attention of an 0b10 checkpoint 19246 | -4/Proximity Caves | Learned 4 Research zone layouts 19252 | -4/Proximity Caves | Snuck into a huge 0b10 base via the rear entrance 19275 | -4/Proximity Caves | Discovered exit to Factory (range 3) 19280 | -4/Proximity Caves | Entered Factory 19280 | -4/Factory | Evolved 2 slots: Utility x2 19499 | -4/Factory | Repaired Exp. Sensor Array 19671 | -4/Factory | Discovered new exit (range 3) 19672 | -4/Factory | Identified exit to Research 19792 | -4/Factory | Identified exit to Upper Caves 19794 | -4/Factory | Build established: Hacker-Ninja 19832 | -4/Factory | Discovered exit to Research (range 15) 19924 | -4/Factory | Found Prototype Device 19982 | -4/Factory | Identified EM Disruption Field 20194 | -4/Factory | Sucked down chute 20194 | -4/Factory | Entered Waste 20197 | -4/Waste | Spotted C-40 Crusher 20200 | -4/Waste | Spotted C-40 Crusher 20207 | -4/Waste | Spotted C-40 Crusher 20208 | -4/Waste | Spotted C-40 Crusher 20209 | -4/Waste | EMP discharged 20209 | -4/Waste | System corruption reached 10% 20215 | -4/Waste | Spotted C-40 Crusher 20217 | -4/Waste | Spotted C-40 Crusher 20218 | -4/Waste | Discovered new exit (range 14) 20230 | -4/Waste | Identified exit to Factory 20231 | -4/Waste | Entered Factory 20447 | -4/Factory | Fabricated Exp. Terrain Scan Processor? 20572 | -4/Factory | Fabricated Mic. Fission Core? 20601 | -4/Factory | Repaired Faulty EM Disruption Field? 20802 | -4/Factory | Discovered exit to Research (range 22) 20903 | -4/Factory | Build established: Machinist-Ninja 20919 | -4/Factory | Fabricated System Restoration Module? 21064 | -4/Factory | Entered Upper Caves 21260 | -4/Upper Caves | Discovered new exit (range 17) 21461 | -4/Upper Caves | Identified exit to Upper Caves 21462 | -4/Upper Caves | Entered another Upper Caves area 21470 | -4/Upper Caves | Learned location of Quarantine (-3) 21477 | -4/Upper Caves | Discovered new exit (range 5) 21479 | -4/Upper Caves | Identified exit to Zhirov 21547 | -4/Upper Caves | Build established: Machinist-Scout 22563 | -4/Upper Caves | Entered Zhirov 22563 | -4/Zhirov | Discovered new exit (range 3) 22570 | -4/Zhirov | Met Zhirov 22578 | -4/Zhirov | Learned location of Command (-1) 22580 | -4/Zhirov | Zhirov requested help retrieving the SGEMP Prototype 22586 | -4/Zhirov | Found Alien Artifact 22586 | -4/Zhirov | Identified Integrated Dissipator 22586 | -4/Zhirov | Installed Integrated Dissipator, increased core heat dissipation (+2%) 22642 | -4/Zhirov | Found Alien Artifact 22657 | -4/Zhirov | Identified exit to Proximity Caves 22658 | -4/Zhirov | Entered Proximity Caves 22662 | -3/Proximity Caves | Build established: Machinist-Ninja 22682 | -3/Proximity Caves | Spotted B-86 Titan 23052 | -3/Proximity Caves | Discovered exit to Research (range 13) 23055 | -3/Proximity Caves | Entered Research 23055 | -3/Research | Evolved 2 slots: Utility x2 23080 | -3/Research | Identified exit to Armory 23080 | -3/Research | Identified exit to Quarantine 23370 | -3/Research | Build established: Hacker-Ninja 23460 | -3/Research | Garrison activated, responded to threat 23538 | -3/Research | Identified Transdimensional Reconstructor 23710 | -3/Research | Spotted B-86 Titan 23830 | -3/Research | First assault squad dispatched 23897 | -3/Research | Spotted B-90 Cyclops 23902 | -3/Research | Entered Quarantine 23914 | -3/Quarantine | Cryocooling Duct disabled 23929 | -3/Quarantine | Ambient heat levels rising (+20) 23929 | -3/Quarantine | Non-combat units ordered to evacuate 23985 | -3/Quarantine | Discovered new exit (range 16) 24086 | -3/Quarantine | Found Alien Artifact 24089 | -3/Quarantine | Found Alien Artifact 24117 | -3/Quarantine | Identified Terrabomb 24175 | -3/Quarantine | Found Alien Energy Cannon 24175 | -3/Quarantine | Identified Core Cannon 24232 | -3/Quarantine | Repaired Lrn. Terrain Scanner 24237 | -3/Quarantine | Found Prototype Processor 24341 | -3/Quarantine | Found Alien Artifact 24347 | -3/Quarantine | Identified Phase Redirector 24389 | -3/Quarantine | Repaired Mic. Fission Core 24412 | -3/Quarantine | Repaired Adv. Powered Armor 24429 | -3/Quarantine | Identified Spectral Analyzer 24443 | -3/Quarantine | Met incapacitated Sigix Warrior 24443 | -3/Quarantine | Lockdown squad dispatched 24573 | -3/Quarantine | Found Alien Artifact 24606 | -3/Quarantine | Found Alien Artifact 24698 | -3/Quarantine | Identified Dimensional Node Initializer 24738 | -3/Quarantine | Found Alien Artifact 24767 | -3/Quarantine | Identified Hpw. Transdimensional Reconstructor 24779 | -3/Quarantine | Found Enh. Force Lance 24851 | -3/Quarantine | Identified Subatomic Replicator 24931 | -3/Quarantine | Found Alien Slashing Weapon 24931 | -3/Quarantine | Identified Sigix Broadsword 24949 | -3/Quarantine | Found Alien Impact Weapon 24961 | -3/Quarantine | Found Exp. Thermal Shield 25172 | -3/Quarantine | Identified exit to Research 25173 | -3/Quarantine | Entered Research 25173 | -2/Research | Warlord forces began assault on 0b10 25173 | -2/Research | Evolved 2 slots: Propulsion x1, Utility x1 25197 | -2/Research | Identified exit to Testing 25260 | -2/Research | Borebot progress halted 25277 | -2/Research | Borebot progress halted 25283 | -2/Research | Research machine network offline 25289 | -2/Research | Fabricated Mni. Fusion Reactor? 25313 | -2/Research | Spotted B-90 Cyclops 25336 | -2/Research | Borebot progress halted 25397 | -2/Research | Borebot progress halted 25494 | -2/Research | Met up with Warlord 25587 | -2/Research | Borebot progress halted 25617 | -2/Research | Build established: Hacker-Scout 25774 | -2/Research | Warlord destroyed during the assault 25775 | -2/Research | Spotted Striker 25873 | -2/Research | Local fabrication network quarantined 25951 | -2/Research | Spotted Striker 25958 | -2/Research | Spotted Striker 26087 | -2/Research | Spotted Striker 26231 | -2/Research | Entered Testing 26348 | -2/Testing | Repaired Exp. Propulsion Shielding 26424 | -2/Testing | Spotted PY-2UQIVCNR7W 26435 | -2/Testing | Found Prototype Energy Gun 26435 | -2/Testing | Identified Tachyon Dispersion Ray 26465 | -2/Testing | Central database locked down 26469 | -2/Testing | Discovered new exit (range 18) 26543 | -2/Testing | Found Prototype Protection 26543 | -2/Testing | Identified Med. Regenerative Plating 26546 | -2/Testing | Found Prototype Protection 26546 | -2/Testing | Identified Lgt. Regenerative Plating 26629 | -2/Testing | Build established: Hacker-Ninja 26701 | -2/Testing | Initialized slip node 26737 | -2/Testing | Spotted PD-7GYZRHKE5B 26804 | -2/Testing | Found Prototype Energy Cannon 26804 | -2/Testing | Identified Hpw. Disruptor Cannon 26877 | -2/Testing | Identified Core Stripper 27318 | -2/Testing | Fabricated Gui. Micro-nuke Launcher (x1) 27371 | -2/Testing | Fabricated Mni. Fusion Reactor (x1) 27403 | -2/Testing | Fabricated Nanoactuators (x2) 27431 | -2/Testing | Local fabrication network quarantined 27458 | -2/Testing | Fabricated Exp. Core Analyzer (x1) 27560 | -2/Testing | Repaired Impulse Thruster Array 27937 | -2/Testing | Spotted Striker 28009 | -2/Testing | Build established: Hacker-Gladiator 28150 | -2/Testing | Spotted Striker 28168 | -2/Testing | Spotted Alpha 7 28178 | -2/Testing | Stole the SGEMP Prototype 28179 | -2/Testing | Warped through subspace to slip node 28231 | -2/Testing | First assault squad dispatched 28282 | -2/Testing | Repaired Adv. Powered Armor? 28381 | -2/Testing | Protovariant out of control (PY-2UQIVCNR7W) 28381 | -2/Testing | Unleashed a protovariant (PY-2UQIVCNR7W) 28545 | -2/Testing | Spotted Fortress 28570 | -2/Testing | Discovered new exit (range 6) 28572 | -2/Testing | Identified exit to Section 7 28572 | -2/Testing | Entered Section 7 28594 | -2/Section 7 | Identified exit to Access 28644 | -2/Section 7 | Found Alien Artifact 28673 | -2/Section 7 | Identified Integrated Reactor 28678 | -2/Section 7 | Installed Integrated Reactor, increased core energy generation (+2%) 28706 | -2/Section 7 | Found Alien Artifact 28729 | -2/Section 7 | Identified Core Reset Matrix 28855 | -2/Section 7 | Found Integrated Reactor 28855 | -2/Section 7 | Installed Integrated Reactor, increased core energy generation (+2%) 28878 | -2/Section 7 | Build established: Hacker-Ninja 28916 | -2/Section 7 | Spotted S7 Guard 28951 | -2/Section 7 | Found Alien Artifact 29083 | -2/Section 7 | Identified Core Regenerator 29173 | -2/Section 7 | Found Alien Artifact 29231 | -2/Section 7 | Spotted B-90 Cyclops 29249 | -2/Section 7 | Spotted Alpha 7 29424 | -2/Section 7 | Scanned by Researcher 29425 | -2/Section 7 | Intercept squad dispatched 29427 | -2/Section 7 | Identified Integrity Redistributor 29427 | -2/Section 7 | Used Integrity Redistributor, redistributed integrity from core (-16) 29432 | -2/Section 7 | Spotted Tracker 29432 | -2/Section 7 | Spotted Tracker 29445 | -2/Section 7 | Destroyed Tracker 29462 | -2/Section 7 | Spotted Combat Programmer 29463 | -2/Section 7 | Spotted Combat Programmer 29479 | -2/Section 7 | Self-destructed Last Messages --------------- 29465_ Penetrated by EMDS Slug. 29466_ U-05 Engineer lays Concrete. 29466_ Penetrated by EMDS Slug. 29466_ Mni. Fusion Reactor destroyed. 29467_ U-05 Engineer lays Concrete. 29468_ K-01 Serf collects debris. 29468_ U-05 Engineer lays Concrete. 29468_ Penetrated by EMDS Slug. 29469_ U-05 Engineer lays Concrete. 29470_ Combat Programmer resets U-05 Engineer, system corruption cleaned. 29470_ U-05 Engineer lays Concrete. 29473_ Penetrated by EMDS Slug. 29473_ Mni. Fusion Reactor destroyed. 29473_ U-05 Engineer lays Concrete. 29474_ EMDS Slug penetrates Machine. 29474_ U-05 Engineer lays Concrete. 29476_ Penetrated by EMDS Slug. 29477_ U-05 Engineer lays Concrete. 29477_ Penetrated by EMDS Slug. 29477_ U-05 Engineer lays Concrete. Map ----- +----------------------------------------------------+ | " | | """" """ | | """"""" " " ? | | """" """"" | | """ """" " " " | | """"" " " " " """"" | | " " " " " """ "" | | " """""""""" """"""" | | """ " " " " """ " | | "" T " " " " """""""""" | | "" " " " "" "" | | "" "" """"""""" | | "" "" """ "" | | """ " | | " " "" """"""""" | | "" " """""""""" """""""""""" | | " """ """""""""" """"""""""""" | | """" """ """""""""""" | | """"" | | ? w "" *% " | | """ " =%!" | | """ u p """ | | ? " up " | | ? """ k u | | ? u | | ? @ | | u | | ? """"" """""""" | | ?""""""" ###"""""" """" """"""""""" """" | | ?""""""" ###"""""""""""""""""""""" """"" | | ?######### ###++################################# | | ?######### ### ################################# | | ?############## ################################# | | ??############# ################################# | | ??############# ################################# | | ??############# ####"""""" """""############## | | ???############ ####"""""" """""############## | | ???############ ####"""""" "############## | | ????########### #### " """""############## | | ???? """""############## | | ????? """""############## | | ??????###############" """""############## | | ???????##?###########"" "############## | | ????????#############" " "############## | | ?????????"###########"""""""" """ "############## | | ??????????################### # ################# | | ???????????#?################ ################### | | ?????????????################ ##########?######## | | ???????????????############## ################### | | ??????????????????########### #?################# | +----------------------------------------------------+ Best States ------------- Heat Dissipation 78 Energy Generation 69 Energy Capacity 1325 Matter Stores 300 Matter Capacity 300 Sight Range 16 Robot Scan Range 30 Terrain Scan Range 24 Terrain Scan Density 1010 Jamming Range 16 EM Shielding 3 Armor Coverage 600 Resistance: TH 30 Propulsion Shielding 90 Weapon Cycling 15 Melee Speed Boost 30 Phase Shifting 20 Evasion (%) 97 Targeting Accuracy 5 Melee Accuracy 12 Recoil Reduction 3 Particle Charging 20 Offensive Hacking 42 Defensive Hacking 14 Item Schematics ----------------- Exp. Sensor Array | -9/Materials | Scanalyzed Katana | -9/Materials | Scanalyzed Gauss Rifle | -9/Recycling | Hacked Med. Storage Unit | -9/Recycling | Hacked Hacking Suite | -7/Factory | Scanalyzed Imp. Propulsion Shielding | -6/Extension | Hacked Adv. Signal Interpreter | -6/Extension | Hacked Imp. Hacking Suite | -6/Extension | Hacked Imp. System Shield | -6/Extension | Hacked Dynamic Insulation System | -6/Extension | Hacked Adv. EMP Blaster | -6/Cetus | Hacked Force Lance | -6/Hub_04(d) | Hacked Adv. Particle Charger | -5/Factory | Hacked Nuclear Pulse Array | -5/Factory | Hacked Exp. Signal Interpreter | -5/Factory | Hacked Exp. Propulsion Shielding | -5/Factory | Hacked Cld. Cesium-ion Thruster | -5/Factory | Scanalyzed Imp. Dynamic Insulation System | -5/Factory | Hacked Adv. Hacking Suite | -5/Factory | Hacked Adv. Transmission Jammer | -5/Factory | Hacked Enh. Force Lance | -5/Factory | Hacked Exp. Melee Analysis Suite | -5/Factory | Scanalyzed Quantum Shading Machine | -5/Factory | Hacked Gamma Bomb Array | -5/Factory | Hacked Mni. Smartbomb Launcher | -5/Factory | Hacked Adv. Force Field | -5/Factory | Hacked Adv. Core Analyzer | -5/Factory | Hacked Lgt. Particle Reactor | -5/Factory | Hacked Adv. Powered Armor | -5/Factory | Scanalyzed Mic. Fission Core | -5/Factory | Scanalyzed Exp. Heat Sink | -4/Factory | Scanalyzed Exp. Terrain Scan Processor | -4/Factory | Hacked System Restoration Module | -4/Factory | Hacked Assault Drone Bay | -4/Zhirov | Free Exp. Optical Array | -4/Zhirov | Free Imp. Arc Thrower | -4/Zhirov | Free Diametric Drive | -3/Research | Scanalyzed Hyp. Railgun | -3/Quarantine | Hacked Adv. Component Analysis Suite | -3/Quarantine | Hacked Adv. Cloaking Device | -3/Quarantine | Hacked Mni. Fusion Reactor | -2/Research | Hacked Exp. Target Analyzer | -2/Testing | Hacked Exp. Core Analyzer | -2/Testing | Hacked Nanoactuators | -2/Testing | Hacked Enh. Nova Cannon | -2/Testing | Hacked Imp. Quantum Reactor | -2/Testing | Scanalyzed Adv. Armor Integrity Analyzer | -2/Section 7 | Hacked Adv. Reaction Control System | -2/Section 7 | Hacked Enh. Quantum Rifle | -2/Section 7 | Hacked Robot Schematics ------------------ O-16 Technician | -9/Recycling | Hacked H-66 Slayer | -6/Extension | Hacked Fabricated ------------ O-16 Technician | x1 | -7/Factory O-16 Technician | x1 | -6/Factory O-16 Technician | x1 | -5/Factory O-16 Technician | x1 | -5/Factory Exp. Signal Interpreter | x1 | -5/Factory Nuclear Pulse Array | x2 | -5/Factory Nuclear Pulse Array | x2 | -5/Factory Adv. Hacking Suite | x1 | -5/Factory Imp. Dynamic Insulation System | x2 | -5/Factory Exp. Propulsion Shielding | x1 | -5/Factory Enh. Force Lance | x1 | -5/Factory Enh. Force Lance | x1 | -5/Factory Mni. Smartbomb Launcher | x1 | -5/Factory Adv. Hacking Suite | x1 | -5/Factory Adv. Transmission Jammer | x1 | -5/Factory Adv. Core Analyzer | x1 | -5/Factory Exp. Terrain Scan Processor | x1 | -4/Factory Mic. Fission Core | x2 | -4/Factory System Restoration Module | x2 | -4/Factory Mni. Fusion Reactor | x1 | -2/Research Gui. Micro-nuke Launcher | x1 | -2/Testing | Preloaded Mni. Fusion Reactor | x1 | -2/Testing Nanoactuators | x2 | -2/Testing Exp. Core Analyzer | x1 | -2/Testing Alien Tech Used ----------------- Integrated Dissipator Core Cannon Sigix Broadsword Dimensional Node Initializer Core Stripper High-powered Transdimensional Reconstructor Integrated Reactor Integrity Redistributor Achievements -------------- Maximum Efficiency Challenges ------------ None Game ------ Seed CoilTargetingField Manual? 0 Play Time 08:11:23 Cumulative 356.1 hours Start 2020.03.11 @ 00:34:07 End 2020.03.15 @ 00:58:35 Sessions 17 Manual Loads 0 Difficulty Rogue Special Mode None Game No. 250 Rogue 250 Adventurer 0 Explorer 0 Win Type - Total 3 Types 3/0/0/0/0/0/0 Lore% 78 Gallery% 83 Achievement% 61 Wizard Run 0 Options --------- ASCII 0 Keyboard 0 Movement Mouse Keybinds 1 Fullscreen 2 Font 24/Smallcaps Map View 76x50 Tactical HUD 1 Map Filters NONE Filters NONE Steam 1 RUN: a83200e4-3b6c-4ad4-8ce3-d59cbb492445